{"text_format":"1","workbook":"xlsx","n_sheets":3,"sheets":["Munkalap","cimke","cimkenyomtato"],"not_rendered":{"charts":0,"images":1,"macros":1,"external_links":0,"defined_names":4,"comments":2,"pivot_tables":2},"unopened":[],"bounds":{"document_bytes":16777216,"sheet_cells":100000,"rows_first":2000,"rows_last":500,"rows_between":2000,"halvings":0,"cell_chars":16384,"cell_head_chars":4096},"cells_cut":0,"cells_raw":0,"read":"whole","date_system":"1900"}

{"sheet":"Munkalap","index":0,"n_rows":289,"n_cols":23,"rows_kept":289,"cut":false,"hidden":false,"merged":[[4,11,4,12],[5,11,5,12],[6,13,6,15],[7,13,7,15],[8,13,8,15],[0,11,1,15],[0,4,0,10],[1,4,1,10],[2,5,2,10],[3,5,3,10],[3,11,3,12],[2,11,2,12],[60,3,60,4],[9,11,9,12],[60,12,60,13],[10,6,10,8],[10,9,10,12],[10,13,10,15],[9,13,9,15],[5,9,5,10],[5,5,5,7],[6,5,6,10],[7,5,7,10],[4,5,4,10],[0,2,0,3],[2,2,2,3],[1,2,1,3],[3,2,3,3],[4,2,4,3],[57,1,58,1],[44,3,44,4],[6,2,6,3],[10,2,10,5],[0,1,11,1],[46,1,56,1],[44,1,45,1],[45,2,45,13],[9,2,9,3],[7,2,7,3],[8,2,8,3],[8,11,8,12],[7,11,7,12],[6,11,6,12],[8,5,8,10],[9,5,9,10],[46,14,46,15],[47,14,47,15],[48,14,48,15],[49,14,49,15],[50,14,50,15],[56,14,56,15],[57,13,57,15],[51,14,51,15],[52,14,52,15],[53,14,53,15],[54,14,54,15],[55,14,55,15]]}
[null,"Árumegnevezés kiválasztása: ráállunk az első mezőre (ez alatti mező), a jobbszéli nyilra klikkelünk, és a legördülő menüből kiválasztjuk a kívánt megnevezést! Ha nem találod meg a kívánt megnevezést, válaszd az utolsó \"XXXXXX\" jelet, és a \"Szállító megjegyzése\" oszlopba írd be a saját megnevezésedet!\nCsak a zöld fejlécű mezőbe írjunk, a többiben képlet van, ill. védett mezők!","Vevő neve:",null," MARTIN METALS Kft.",null,null,null,null,null,null,"Rakományjegyzék"]
[null,null,"Vevő székhely címe:",null,"   8000 Székesfehérvár, Nagyszombati u. 43.",null,null,null,null,null,null,null,null,null,null,null,null,null,null,null,null,"Alumínium hulladék",20000000]
[null,null,"Vevő telephely címe:",null,"   8104 Várpalota, Fehérvári út 26.","8104 Várpalota Fehérvári u.26",null,null,null,null,null,"Dátum:",null,null,null,null,null,null,null,null,null,"Al minősítés alatt",20000001]
[null,null,"Vevő adószáma:",null,"13108809-2-07",null,null,null,null,null,null,"Szállító jármű típusa:",null,null,null,null,null,null,null,null,null,"200140 Alu hull.",200140]
[null,null,"Fémker. eng.sz:",null,"FE00002500001",null,null,null,null,null,null,"Jármű rendszám:",null,null,null,null,null,null,null,null,null,"Al hulladék Al99,5",20101050]
[null,null,"Szállító neve: ",null,null,null,null,null,"Kódja:",null,null,"Fuvarozó neve:",null,null,null,null,null,null,null,null,null,"Al hulladék huzal 99,5-99,7",20101070]
[null,null,"Székhelyének címe:",null,null,null,null,null,null,null,null,"Székhelyének címe:",null,null,null,null,null,null,null,null,null,"Al hulladék standard Al99,0-99,5",20101300]
[null,null,"Telephelyének címe:",null,null,null,null,null,null,null,null,"Telephelyének címe:",null,null,null,null,null,null,null,null,null,"Al hulladék kábel bevonatos",20111050]
[null,null,"Adószáma:",null,null,null,null,null,null,null,null,"Adószáma:",null,null,null,null,null,null,null,null,null,"Al hulladék 99,5 bevonatos vékony",20111060]
[null,null,"Fémker. eng.sz:",null,null,null,null,null,null,null,null,"Fémker. eng.sz:",null,null,null,null,null,null,null,null,null,"Al hulladék huzal bevonatos",20111070]
[null,null,null,null,null,null,"Feladási súlyok (kg):",null,null,"Átvételi súlyok (kg):",null,null,null,"Megjegyzések",null,null,null,null,null,null,null,"Al hulladék Offset-litho",20111100]
[null,null,"Sor-szám:","Cikkszám:","VTSZ","Raklap jele:","Bruttó feladási","Tára feladási","Nettó feladási","Bruttó átvételi","Tára átvételi","Nettó átvételi","Helykód","Megnevezés","Cikkszám","Megjegyzés",null,"feladás",null,"átvétel",null,"Al hulladék 99,0-99,5 bevonatos",20111300]
[1,null,1,{"$f":"IF(B13>0,VLOOKUP(B13,$V:$W,2,FALSE),\"\")","v":""},null,null,null,null,{"$f":"IF(G13>0,G13-H13,\"\")","v":""},null,null,{"$f":"IF(J13>0,J13-K13,\"\")","v":""},null,null,{"$f":"IFERROR(IF(N13<>\"\",VLOOKUP(N13,$V:$W,2,FALSE),D13),\"\")","v":""},null,null,"Sorcímkék",null,"Sorcímkék",null,"Al hulladék offset papiros",20121100]
[2,null,2,{"$f":"IF(B14>0,VLOOKUP(B14,$V:$W,2,FALSE),\"\")","v":""},null,null,null,null,"",null,null,{"$f":"IF(J14>0,J14-K14,\"\")","v":""},null,null,{"$f":"IFERROR(IF(N14<>\"\",VLOOKUP(N14,$V:$W,2,FALSE),D14),\"\")","v":""},null,null,"Végösszeg",null,"Végösszeg",null,"Al hulladék stripes",20121300]
[3,null,3,"",null,null,null,null,"",null,null,"",null,null,"",null,null,null,null,null,null,"Al hulladék Al99,5 fóliás",20131050]
[4,null,4,"",null,null,null,null,"",null,null,"",null,null,"",null,null,null,null,null,null,"Al hulladék huzal 99,5-99,7 oxidos",20141070]
[5,null,5,"",null,null,null,null,"",null,null,"",null,null,"",null,null,null,null,null,null,"Al hulladék (Dural)",20202009]
[6,null,6,"",null,null,null,null,"",null,null,"",null,null,"",null,null,null,null,null,null,"Al hulladék AlMn",20303003]
[7,null,7,"",null,null,null,null,"",null,null,"",null,null,"",null,null,null,null,null,null,"Al hulladék AlMn1Mg1",20303004]
[8,null,8,"",null,null,null,null,"",null,null,"",null,null,"",null,null,null,null,null,null,"Al hulladék AlMn1Mg1 bevonatos",20313004]
[9,null,9,"",null,null,null,null,"",null,null,"",null,null,"",null,null,null,null,null,null,"Al hulladék AlMn fólia",20323003]
[10,null,10,"",null,null,null,null,"",null,null,"",null,null,"",null,null,null,null,null,null,"Al hulladék AlMn1Mg1 fólia",20323004]
[11,null,11,"",null,null,null,null,"",null,null,"",null,null,"",null,null,null,null,null,null,"Al hulladék öntvény \"0 Fe\"",20404000]
[12,null,12,"",null,null,null,null,"",null,null,"",null,null,"",null,null,null,null,null,null,"Al hulladék keréktárcsa",20404001]
[13,null,13,"",null,null,null,null,{"$f":"IF(G25>0,G25-H25,\"\")","v":""},null,null,"",null,null,"",null,null,null,null,null,null,"Al hulladék öntvény \"0 Fe\" bevonatos",20414000]
[14,null,14,"",null,null,null,null,"",null,null,"",null,null,"",null,null,null,null,null,null,"Al hulladék öntvény \"Fe\"",20494000]
[15,null,15,"",null,null,null,null,"",null,null,"",null,null,"",null,null,null,null,null,null,"Al hulladék AlMg2,5 Cr",20505052]
[16,null,16,"",null,null,null,null,"",null,null,"",null,null,"",null,null,null,null,null,null,"Al hulladék AlMg1-5",20505083]
[17,null,17,"",null,null,null,null,"",null,null,"",null,null,"",null,null,null,null,null,null,"Al hulladék AlMg 4-5 Auto",20505182]
[18,null,18,"",null,null,null,null,"",null,null,"",null,null,"",null,null,null,null,null,null,"Aluhulladék AlMg5-6",20505556]
[19,null,19,"",null,null,null,null,"",null,null,"",null,null,"",null,null,null,null,null,null,"Aluhulladék AlMg1-3",20505754]
[20,null,20,"",null,null,null,null,"",null,null,"",null,null,"",null,null,null,null,null,null,"Al hulladék AlMg1-5 bevonatos",20515083]
[21,null,21,"",null,null,null,null,"",null,null,"",null,null,"",null,null,null,null,null,null,"Al hulladék AlMg1-3 bevonatos",20515754]
[22,null,22,"",null,null,null,null,"",null,null,"",null,null,"",null,null,null,null,null,null,"Aluhulladék AlMg1-3 (fóliázott)",20525754]
[23,null,23,"",null,null,null,null,"",null,null,"",null,null,"",null,null,null,null,null,null,"Al hulladék dugattyú",20604800]
[24,null,24,"",null,null,null,null,"",null,null,"",null,null,"",null,null,null,null,null,null,"Al hulladék AlMgSi1 (6005)",20606005]
[25,null,25,"",null,null,null,null,"",null,null,"",null,null,"",null,null,null,null,null,null,"Al hulladék AlMgSi1 (6016)",20606016]
[26,null,26,"",null,null,null,null,"",null,null,"",null,null,"",null,null,null,null,null,null,"Al hulladék profil (6060)",20606060]
[27,null,27,"",null,null,null,null,"",null,null,"",null,null,"",null,null,null,null,null,null,"Al hulladék AlMgSi1 (6061)",20606061]
[28,null,28,"",null,null,null,null,"",null,null,"",null,null,"",null,null,null,null,null,null,"Al hulladék profil AlMgSi0.5 (6063)",20606063]
[29,null,29,"",null,null,null,null,{"$f":"IF(G41>0,G41-H41,\"\")","v":""},null,null,"",null,null,"",null,null,null,null,null,null,"Al hulladék cső-profil AlMgSi1 (6082)",20606082]
[30,null,30,"",null,null,null,null,"",null,null,"",null,null,"",null,null,null,null,null,null,"Al hulladék légvezeték",20606101]
[31,null,31,"",null,null,null,null,"",null,null,"",null,null,"",null,null,null,null,null,null,"Al hulladék lemez AlMgSi1 (6105)",20606105]
[32,null,32,"",null,null,null,null,"",null,null,"",null,null,"",null,null,null,null,null,null,"Al hulladék bevont profil",20616063]
[null,"A nyomtatási terület ki van jelölve, ne változtassál rajta! Hagyd oldaltöréses nézetben!",null,"Összesen:",null,{"$f":"COUNT(F13:F44)","v":0},{"$f":"SUM(G13:G44)","v":0},{"$f":"SUM(H13:H44)","v":0},{"$f":"SUM(I13:I44)","v":0},{"$f":"SUM(J13:J44)","v":0},0,0,null,null,null,null,null,null,null,null,null,"Al hulladék AlMgSi0,5 - 1 (bevont)",20616082]
[null,null,"Összesítés:",null,null,null,null,null,null,null,null,null,null,null,null,null,null,null,null,null,null,"Al hulladék AlMgSi0.5 izoprofil",20636063]
[null,"Adatfrissítés szükséges a beírások után. Ehhez: az office 2010 és későbbi verziónál az ADATOK menü ÖSSZES FRISSÍTÉSE ikonnal frissítsünk. Régebbi verzióknál: elmentjük a file-t új névvel (pl. a Raklap+dátum névvel), majd bezárjuk, és újra megnyitjuk. Ekkor már a kitöltött táblázat jelenik meg, amely az összesítéseket is tartalmazza. \nNem szükséges kinyomtatni, emailen kérjük elküldeni hozzánk a teljes file-t a következő mindkét címre! Kérjük, hogy ne faxoljátok, csak végszükség esetén (pl. ha nincs Internet kapcsolat!)",null,"Cikkszám:","VTSZ","Raklap (db)","Bruttó feladási","Tára felad","Nettó feladási","Bruttó átvételi","Tára átv","Nettó átvételi","Raklap (db)","Cikkszám:","Átvevő megjegyzései",null,null,null,null,null,null,"Al hulladék gázpalack AlMg1Si1",20646182]
[null,null,null,{"$f":"IF(R14<>\"\"&\"Végösszeg\",R14,\"\")","v":""},null,{"$f":"IFERROR(IF(D48<>\"\",COUNTIF($D$13:$D$44,D48),\"\"),\"\")","v":""},{"$f":"IFERROR(IF(SUMIF($D$13:$D$44,D48,$G$13:$G$44)>0,SUMIF($D$13:$D$44,D48,$G$13:$G$44),\"\"),\"\")","v":""},{"$f":"IFERROR(IF(SUMIF($D$13:$D$44,D48,$H$13:$H$44)>0,SUMIF($D$13:$D$44,D48,$H$13:$H$44),\"\"),\"\")","v":""},{"$f":"IFERROR(IF(SUMIF($D$13:$D$44,D48,$I$13:$I$44)>0,SUMIF($D$13:$D$44,D48,$I$13:$I$44),\"\"),\"\")","v":""},{"$f":"IFERROR(IF(SUMIF($D$13:$D$44,D48,$J$13:$J$44)>0,SUMIF($D$13:$D$44,D48,$J$13:$J$44),\"\"),\"\")","v":""},{"$f":"IFERROR(IF(SUMIF($D$13:$D$44,D48,$K$13:$K$44)>0,SUMIF($D$13:$D$44,D48,$K$13:$K$44),\"\"),\"\")","v":""},{"$f":"IFERROR(IF(SUMIF($D$13:$D$44,D48,$L$13:$L$44)>0,SUMIF($D$13:$D$44,D48,$L$13:$L$44),\"\"),\"\")","v":""},{"$f":"IFERROR(IF(N48<>\"\",COUNTIF($O$13:$O$44,N48),\"\"),\"\")","v":""},{"$f":"IF(IF(T14<>\"\"&\"Végösszeg\",T14,\"\")=0,\"\",IF(T14<>\"\"&\"Végösszeg\",T14,\"\"))","v":""},null,null,null,null,null,null,null,"Al hulladék AlZnMg",20707000]
[null,null,null,{"$f":"IF(R15<>\"\"&\"Végösszeg\",R15,\"\")","v":0},null,{"$f":"IFERROR(IF(D49<>\"\",COUNTIF($D$13:$D$44,D49),\"\"),\"\")","v":0},{"$f":"IFERROR(IF(SUMIF($D$13:$D$44,D49,$G$13:$G$44)>0,SUMIF($D$13:$D$44,D49,$G$13:$G$44),\"\"),\"\")","v":""},{"$f":"IFERROR(IF(SUMIF($D$13:$D$44,D49,$H$13:$H$44)>0,SUMIF($D$13:$D$44,D49,$H$13:$H$44),\"\"),\"\")","v":""},{"$f":"IFERROR(IF(SUMIF($D$13:$D$44,D49,$I$13:$I$44)>0,SUMIF($D$13:$D$44,D49,$I$13:$I$44),\"\"),\"\")","v":""},{"$f":"IFERROR(IF(SUMIF($D$13:$D$44,D49,$J$13:$J$44)>0,SUMIF($D$13:$D$44,D49,$J$13:$J$44),\"\"),\"\")","v":""},{"$f":"IFERROR(IF(SUMIF($D$13:$D$44,D49,$K$13:$K$44)>0,SUMIF($D$13:$D$44,D49,$K$13:$K$44),\"\"),\"\")","v":""},{"$f":"IFERROR(IF(SUMIF($D$13:$D$44,D49,$L$13:$L$44)>0,SUMIF($D$13:$D$44,D49,$L$13:$L$44),\"\"),\"\")","v":""},{"$f":"IFERROR(IF(N49<>\"\",COUNTIF($O$13:$O$44,N49),\"\"),\"\")","v":""},"",null,null,null,null,null,null,null,"Al hulladék AlFeMn",20808006]
[null,null,null,0,null,0,"","","","","","","","",null,null,null,null,null,null,null,"Al hulladék AlFeSi",20808011]
[null,null,null,0,null,0,"","","","","","","","",null,null,null,null,null,null,null,"Al fólia hulladék (8xxx)",20808075]
[null,null,null,0,null,0,"","","","","","","",{"$f":"IF(IF(T18<>\"\"&\"Végösszeg\",T18,\"\")=0,\"\",IF(T18<>\"\"&\"Végösszeg\",T18,\"\"))","v":""},null,null,null,null,null,null,null,"Al hulladék AlFe",20808079]
[null,null,null,0,null,0,"","","","","","","",{"$f":"IF(IF(T19<>\"\"&\"Végösszeg\",T19,\"\")=0,\"\",IF(T19<>\"\"&\"Végösszeg\",T19,\"\"))","v":""},null,null,null,null,null,null,null,"Al fólia hulladék bevonatos",20818075]
[null,null,null,0,null,0,"","","","","","","","",null,null,null,null,null,null,null,"Al hulladék vegyes (tiszta)",20909000]
[null,null,null,0,null,0,"","","","","","","","",null,null,null,null,null,null,null,"Al hulladék vegyes hűtő",20909001]
[null,null,null,0,null,0,"","","","","","","","",null,null,null,null,null,null,null,"Al hulladék vegyes (tiszta) válogatás al",20909002]
[null,null,null,0,null,0,"","","","","","","","",null,null,null,null,null,null,null,"Al hulladék vegyes (5000-6000)",20909003]
[null,"Kilkkelj egyenként a két email címre, mellékeld a fájlt, és küldd el nekünk!",null,"Összesen:",null,{"$f":"SUM(F48:F57)","v":0},0,0,0,0,0,0,{"$f":"SUM(M48:M57)","v":0},null,null,null,null,null,null,null,null,"Al hulladék brazing Zn01",20909100]
[null,null,null,null,null,null,null,null,null,null,null,null,null,null,null,null,null,null,null,null,null,"Al hulladék brazing Zn1",20909101]
[null,"store@martinmetals.eu",null,null,null,null,null,null,null,null,null,null,null,null,null,null,null,null,null,null,null,"Al hulladék italosdoboz",20913050]
[null,"office@martinmetals.eu",null,"Eladó aláírása",null,null,null,null,"Fuvarozó aláírása",null,null,null,"Átvevő aláírása",null,null,null,null,null,null,null,null,"Al hulladék vegyes (bevont.)",20919000]
[null,null,null,null,null,null,null,null,null,null,null,null,null,null,null,null,null,null,null,null,null,"Al hulladék vegyes lemez (bevont.)",20919001]
[null,null,null,null,null,null,null,null,null,null,null,null,null,null,null,null,null,null,null,null,null,"Al hulladék vegyes (bevont.) válogatás a",20919002]
[null,null,null,null,null,null,null,null,null,null,null,null,null,null,null,null,null,null,null,null,null,"Al hulladék AlCu hűtő",20919003]
[null,null,null,null,null,null,null,null,null,null,null,null,null,null,null,null,null,null,null,null,null,"Al hulladék válogatási vegyes",20919500]
[null,null,null,null,null,null,null,null,null,null,null,null,null,null,null,null,null,null,null,null,null,"Al hulladék vegyes (törmelék)",20999000]
[null,null,null,null,null,null,null,null,null,null,null,null,null,null,null,null,null,null,null,null,null,"Al hulladék forgács  (AlMgSi)",21616000]
[null,null,null,null,null,null,null,null,null,null,null,null,null,null,null,null,null,null,null,null,null,"Al hulladék granulátum 99,5",22101050]
[null,null,null,null,null,null,null,null,null,null,null,null,null,null,null,null,null,null,null,null,null,"Al hulladék granulátum Cu tart.",23101000]
[null,null,null,null,null,null,null,null,null,null,null,null,null,null,null,null,null,null,null,null,null,"Al hulladék granulátum",23101050]
[null,null,null,null,null,null,null,null,null,null,null,null,null,null,null,null,null,null,null,null,null,"Al másodnyersanyag \"0 Fe\" gyk.",24444000]
[null,null,null,null,null,null,null,null,null,null,null,null,null,null,null,null,null,null,null,null,null,"Al másodnyersanyag Al99,5",25101050]
[null,null,null,null,null,null,null,null,null,null,null,null,null,null,null,null,null,null,null,null,null,"Al másodnyersanyag huzal Al99.5-99.7",25101070]
[null,null,null,null,null,null,null,null,null,null,null,null,null,null,null,null,null,null,null,null,null,"Al másodnyersanyag Al99.0 standard",25101300]
[null,null,null,null,null,null,null,null,null,null,null,null,null,null,null,null,null,null,null,null,null,"Al másodnyersanyag Al99,5 bevonatos",25111050]
[null,null,null,null,null,null,null,null,null,null,null,null,null,null,null,null,null,null,null,null,null,"Al másodnyersanyag Offset-litho",25111100]
[null,null,null,null,null,null,null,null,null,null,null,null,null,null,null,null,null,null,null,null,null,"Al másodnyersanyag Al99,0-99,5 bevonatos",25111300]
[null,null,null,null,null,null,null,null,null,null,null,null,null,null,null,null,null,null,null,null,null,"Al másodnyersanyag \"strips\"",25121300]
[null,null,null,null,null,null,null,null,null,null,null,null,null,null,null,null,null,null,null,null,null,"Al másodnyersanyag Al99,5 granulátum",25131050]
[null,null,null,null,null,null,null,null,null,null,null,null,null,null,null,null,null,null,null,null,null,"Al másodnyersanyag huzal granulátum",25131070]
[null,null,null,null,null,null,null,null,null,null,null,null,null,null,null,null,null,null,null,null,null,"Al másodnyersanyag (Dural)",25202009]
[null,null,null,null,null,null,null,null,null,null,null,null,null,null,null,null,null,null,null,null,null,"Al másodnyersanyag Al99,5 garnulátum",25301050]
[null,null,null,null,null,null,null,null,null,null,null,null,null,null,null,null,null,null,null,null,null,"Al másodnyersanyag AlMn",25303003]
[null,null,null,null,null,null,null,null,null,null,null,null,null,null,null,null,null,null,null,null,null,"Al másodnyersanyag AlMn1Mg1",25303004]
[null,null,null,null,null,null,null,null,null,null,null,null,null,null,null,null,null,null,null,null,null,"Al másodnyersanyag  granulátum",25310100]
[null,null,null,null,null,null,null,null,null,null,null,null,null,null,null,null,null,null,null,null,null,"Al másodnyersanyag AlMn1Mg1 bevonatos",25313004]
[null,null,null,null,null,null,null,null,null,null,null,null,null,null,null,null,null,null,null,null,null,"Al másodnyersanyag AlMn fólia",25323003]
[null,null,null,null,null,null,null,null,null,null,null,null,null,null,null,null,null,null,null,null,null,"Al másodnyersanyag AlMn1Mg1 fólia",25323004]
[null,null,null,null,null,null,null,null,null,null,null,null,null,null,null,null,null,null,null,null,null,"Al másodnyersanyag öntvény \"0 Fe\"",25404000]
[null,null,null,null,null,null,null,null,null,null,null,null,null,null,null,null,null,null,null,null,null,"Al másodnyersanyag keréktárcsa",25404001]
[null,null,null,null,null,null,null,null,null,null,null,null,null,null,null,null,null,null,null,null,null,"Al másodnyersanyag \"0 Fe\" gyk.",25444000]
[null,null,null,null,null,null,null,null,null,null,null,null,null,null,null,null,null,null,null,null,null,"Al másodnyersanyag öntvény darálék",25454000]
[null,null,null,null,null,null,null,null,null,null,null,null,null,null,null,null,null,null,null,null,null,"Al másodnyersanyag öntvény \"2% Fe\"",25494000]
[null,null,null,null,null,null,null,null,null,null,null,null,null,null,null,null,null,null,null,null,null,"Al másodnyersanyag AlMg1-3",25505052]
[null,null,null,null,null,null,null,null,null,null,null,null,null,null,null,null,null,null,null,null,null,"Al másodnyersanyag AlMg1-5",25505083]
[null,null,null,null,null,null,null,null,null,null,null,null,null,null,null,null,null,null,null,null,null,"Al másodnyersanyag AlMg 4-5",25505182]
[null,null,null,null,null,null,null,null,null,null,null,null,null,null,null,null,null,null,null,null,null,"Al másodnyersanyag AlMg5-6",25505556]
[null,null,null,null,null,null,null,null,null,null,null,null,null,null,null,null,null,null,null,null,null,"Al másodnyersanyag AlMg1-3",25505754]
[null,null,null,null,null,null,null,null,null,null,null,null,null,null,null,null,null,null,null,null,null,"Al másodnyersanyag AlMg1-5 bevonatos",25515083]
[null,null,null,null,null,null,null,null,null,null,null,null,null,null,null,null,null,null,null,null,null,"Al másodnyerasanyag AlMg1-3 bevonatos",25515754]
[null,null,null,null,null,null,null,null,null,null,null,null,null,null,null,null,null,null,null,null,null,"Al másodnyersanyag AlMg1-3 (fóliázott)",25525754]
[null,null,null,null,null,null,null,null,null,null,null,null,null,null,null,null,null,null,null,null,null,"Al másodnyersanyag AlMgSi1 (6005)",25606005]
[null,null,null,null,null,null,null,null,null,null,null,null,null,null,null,null,null,null,null,null,null,"Al másodnyersanyag AlMgSi1 (6016)",25606016]
[null,null,null,null,null,null,null,null,null,null,null,null,null,null,null,null,null,null,null,null,null,"Al másodnyersanyag profil (6060)",25606060]
[null,null,null,null,null,null,null,null,null,null,null,null,null,null,null,null,null,null,null,null,null,"Al másodnyersanyag AlMgSi1 (6061)",25606061]
[null,null,null,null,null,null,null,null,null,null,null,null,null,null,null,null,null,null,null,null,null,"Al másodnyersanyag profil (6063)",25606063]
[null,null,null,null,null,null,null,null,null,null,null,null,null,null,null,null,null,null,null,null,null,"Al másodnyersanyag AlMgSi0,5 -1",25606082]
[null,null,null,null,null,null,null,null,null,null,null,null,null,null,null,null,null,null,null,null,null,"Al másodnyersanyag légvezeték 6101",25606101]
[null,null,null,null,null,null,null,null,null,null,null,null,null,null,null,null,null,null,null,null,null,"Al másodnyersanyag AlMgSi1 (6105)",25606105]
[null,null,null,null,null,null,null,null,null,null,null,null,null,null,null,null,null,null,null,null,null,"Al másodnyersanyag bevont profil 6063",25616063]
[null,null,null,null,null,null,null,null,null,null,null,null,null,null,null,null,null,null,null,null,null,"Al másodnyersanyag AlMgSi0,5-1 bevont",25616082]
[null,null,null,null,null,null,null,null,null,null,null,null,null,null,null,null,null,null,null,null,null,"Al másodnyersanyag AlMg1Si1 6082",25646082]
[null,null,null,null,null,null,null,null,null,null,null,null,null,null,null,null,null,null,null,null,null,"Al másodnyersanyag gazpalack AlMg1Si1",25646182]
[null,null,null,null,null,null,null,null,null,null,null,null,null,null,null,null,null,null,null,null,null,"Al másodnyersanyag AlMgSi1 (6082)",25656082]
[null,null,null,null,null,null,null,null,null,null,null,null,null,null,null,null,null,null,null,null,null,"Al másodnyersanyag AlZnMg",25707000]
[null,null,null,null,null,null,null,null,null,null,null,null,null,null,null,null,null,null,null,null,null,"Al másodnyersanyag AlFeMn",25808006]
[null,null,null,null,null,null,null,null,null,null,null,null,null,null,null,null,null,null,null,null,null,"Al másodnyersanyag AlFeSi",25808011]
[null,null,null,null,null,null,null,null,null,null,null,null,null,null,null,null,null,null,null,null,null,"Al másodnyersanyag AlFeMn",25808014]
[null,null,null,null,null,null,null,null,null,null,null,null,null,null,null,null,null,null,null,null,null,"Al másodnyersanyag fólia (8xxx)",25808075]
[null,null,null,null,null,null,null,null,null,null,null,null,null,null,null,null,null,null,null,null,null,"Al másodnyersanyag AlFe",25808079]
[null,null,null,null,null,null,null,null,null,null,null,null,null,null,null,null,null,null,null,null,null,"Al másodnyersanyag vegyes (tiszta)",25909000]
[null,null,null,null,null,null,null,null,null,null,null,null,null,null,null,null,null,null,null,null,null,"Al másodnyersanyag vegyes (5000-6000)",25909003]
[null,null,null,null,null,null,null,null,null,null,null,null,null,null,null,null,null,null,null,null,null,"Al másodnyersanyag brazing Zn01",25909100]
[null,null,null,null,null,null,null,null,null,null,null,null,null,null,null,null,null,null,null,null,null,"Al másodnyersanyag brazing Zn1",25909101]
[null,null,null,null,null,null,null,null,null,null,null,null,null,null,null,null,null,null,null,null,null,"Al másodnyersanyag vegyes (bevont)",25919000]
[null,null,null,null,null,null,null,null,null,null,null,null,null,null,null,null,null,null,null,null,null,"Al másodnyersanyag vegyes darálék",25959000]
[null,null,null,null,null,null,null,null,null,null,null,null,null,null,null,null,null,null,null,null,null,"Al hulladék  (dugattyú)",26060480]
[null,null,null,null,null,null,null,null,null,null,null,null,null,null,null,null,null,null,null,null,null,"Al hulladék Al99,5",26101050]
[null,null,null,null,null,null,null,null,null,null,null,null,null,null,null,null,null,null,null,null,null,"Al hulladék huzal 99,5-99,7",26101070]
[null,null,null,null,null,null,null,null,null,null,null,null,null,null,null,null,null,null,null,null,null,"Al hulladék standard Al99,0-99,5",26101300]
[null,null,null,null,null,null,null,null,null,null,null,null,null,null,null,null,null,null,null,null,null,"Al hulladék forgács (vegyes)",26104601]
[null,null,null,null,null,null,null,null,null,null,null,null,null,null,null,null,null,null,null,null,null,"Al hulladék forgács (dugattyú)",26104800]
[null,null,null,null,null,null,null,null,null,null,null,null,null,null,null,null,null,null,null,null,null,"Al hulladék 99,5 bevonatos",26111050]
[null,null,null,null,null,null,null,null,null,null,null,null,null,null,null,null,null,null,null,null,null,"Al hulladék Offset-litho",26111100]
[null,null,null,null,null,null,null,null,null,null,null,null,null,null,null,null,null,null,null,null,null,"Al hulladék 99,0-99,5 bevonatos",26111300]
[null,null,null,null,null,null,null,null,null,null,null,null,null,null,null,null,null,null,null,null,null,"Al hulladék forgács (vegyes, nedves)",26114601]
[null,null,null,null,null,null,null,null,null,null,null,null,null,null,null,null,null,null,null,null,null,"Al hulladék forgács  (AlMgSi)",26116000]
[null,null,null,null,null,null,null,null,null,null,null,null,null,null,null,null,null,null,null,null,null,"Al hulladék forgács (dural)",26120200]
[null,null,null,null,null,null,null,null,null,null,null,null,null,null,null,null,null,null,null,null,null,"Al hulladék Offset-litho papiros",26121100]
[null,null,null,null,null,null,null,null,null,null,null,null,null,null,null,null,null,null,null,null,null,"Al hulladék granulátum 99,5",26201050]
[null,null,null,null,null,null,null,null,null,null,null,null,null,null,null,null,null,null,null,null,null,"Al hulladék (Dural)",26202009]
[null,null,null,null,null,null,null,null,null,null,null,null,null,null,null,null,null,null,null,null,null,"Al hulladék AlMn",26303003]
[null,null,null,null,null,null,null,null,null,null,null,null,null,null,null,null,null,null,null,null,null,"Al hulladék granulátum Cu tart.",26310100]
[null,null,null,null,null,null,null,null,null,null,null,null,null,null,null,null,null,null,null,null,null,"Al hulladék AlMn1Mg1 bevonatos",26313004]
[null,null,null,null,null,null,null,null,null,null,null,null,null,null,null,null,null,null,null,null,null,"Al hulladék öntvény \"0 Fe\"",26404000]
[null,null,null,null,null,null,null,null,null,null,null,null,null,null,null,null,null,null,null,null,null,"Al hulladék keréktárcsa",26404001]
[null,null,null,null,null,null,null,null,null,null,null,null,null,null,null,null,null,null,null,null,null,"Al hull. shreddelt keréktárcsa",26404002]
[null,null,null,null,null,null,null,null,null,null,null,null,null,null,null,null,null,null,null,null,null,"Al hulladék öntvény \"0 Fe\" bevonatos",26414000]
[null,null,null,null,null,null,null,null,null,null,null,null,null,null,null,null,null,null,null,null,null,"Al hulladék forgács (öntvény)",26454001]
[null,null,null,null,null,null,null,null,null,null,null,null,null,null,null,null,null,null,null,null,null,"Al hulladék öntvény \"Fe\"",26494000]
[null,null,null,null,null,null,null,null,null,null,null,null,null,null,null,null,null,null,null,null,null,"Al hulladék öntvény \"Fe >2 %\"",26494002]
[null,null,null,null,null,null,null,null,null,null,null,null,null,null,null,null,null,null,null,null,null,"Al hulladék öntvény \"Fe 25 %\"",26494025]
[null,null,null,null,null,null,null,null,null,null,null,null,null,null,null,null,null,null,null,null,null,"Al hulladék AlMg1-5",26505083]
[null,null,null,null,null,null,null,null,null,null,null,null,null,null,null,null,null,null,null,null,null,"Al hulladék AlMg1-3",26505754]
[null,null,null,null,null,null,null,null,null,null,null,null,null,null,null,null,null,null,null,null,null,"Al hulladék AlMg1-5 bevonatos",26515083]
[null,null,null,null,null,null,null,null,null,null,null,null,null,null,null,null,null,null,null,null,null,"Al hulladék AlMg1-3 bevonatos",26515754]
[null,null,null,null,null,null,null,null,null,null,null,null,null,null,null,null,null,null,null,null,null,"Al hulladék AlMgSi1 (6005)",26606005]
[null,null,null,null,null,null,null,null,null,null,null,null,null,null,null,null,null,null,null,null,null,"Al hulladék AlMgSi1 (6016)",26606016]
[null,null,null,null,null,null,null,null,null,null,null,null,null,null,null,null,null,null,null,null,null,"Al hulladék profil AlMgSi0.5 (6063)",26606063]
[null,null,null,null,null,null,null,null,null,null,null,null,null,null,null,null,null,null,null,null,null,"Al hulladék cső-profil AlMgSi0,5-1",26606082]
[null,null,null,null,null,null,null,null,null,null,null,null,null,null,null,null,null,null,null,null,null,"Al hulladék légvezeték",26606101]
[null,null,null,null,null,null,null,null,null,null,null,null,null,null,null,null,null,null,null,null,null,"Al hulladék profil  (6063) bevont",26616063]
[null,null,null,null,null,null,null,null,null,null,null,null,null,null,null,null,null,null,null,null,null,"Al hulladék AlMgSi0.5 izoprofil",26636063]
[null,null,null,null,null,null,null,null,null,null,null,null,null,null,null,null,null,null,null,null,null,"Al hulladék AlZnMg",26707000]
[null,null,null,null,null,null,null,null,null,null,null,null,null,null,null,null,null,null,null,null,null,"Al hulladék AlFeMn",26808006]
[null,null,null,null,null,null,null,null,null,null,null,null,null,null,null,null,null,null,null,null,null,"Al hulladék AlFeSi",26808011]
[null,null,null,null,null,null,null,null,null,null,null,null,null,null,null,null,null,null,null,null,null,"Al fólia hulladék (8xxx)",26808075]
[null,null,null,null,null,null,null,null,null,null,null,null,null,null,null,null,null,null,null,null,null,"Al hulladék AlFe",26808079]
[null,null,null,null,null,null,null,null,null,null,null,null,null,null,null,null,null,null,null,null,null,"Al fólia hulladék bevonatos",26818075]
[null,null,null,null,null,null,null,null,null,null,null,null,null,null,null,null,null,null,null,null,null,"Al hulladék vegyes (tiszta)",26909000]
[null,null,null,null,null,null,null,null,null,null,null,null,null,null,null,null,null,null,null,null,null,"Al hulladék vegyes hűtő",26909001]
[null,null,null,null,null,null,null,null,null,null,null,null,null,null,null,null,null,null,null,null,null,"Al hulladék brazing Zn01",26909100]
[null,null,null,null,null,null,null,null,null,null,null,null,null,null,null,null,null,null,null,null,null,"Al hulladék brazing Zn1",26909101]
[null,null,null,null,null,null,null,null,null,null,null,null,null,null,null,null,null,null,null,null,null,"Al hulladék italosdoboz",26913050]
[null,null,null,null,null,null,null,null,null,null,null,null,null,null,null,null,null,null,null,null,null,"Al hulladék vegyes (bevont.)",26919000]
[null,null,null,null,null,null,null,null,null,null,null,null,null,null,null,null,null,null,null,null,null,"Al hulladék AlCu hűtő",26919003]
[null,null,null,null,null,null,null,null,null,null,null,null,null,null,null,null,null,null,null,null,null,"Al hulladék vegyes (törmelék)",26999000]
[null,null,null,null,null,null,null,null,null,null,null,null,null,null,null,null,null,null,null,null,null,"Al másodnyersanyag Al99,5",27101050]
[null,null,null,null,null,null,null,null,null,null,null,null,null,null,null,null,null,null,null,null,null,"Al másodnyersanyag huzal Al99.5-99.7",27101070]
[null,null,null,null,null,null,null,null,null,null,null,null,null,null,null,null,null,null,null,null,null,"Al másodnyersanyag Al99,0-99,5 ötvözetle",27101300]
[null,null,null,null,null,null,null,null,null,null,null,null,null,null,null,null,null,null,null,null,null,"Al másodnyersanyag Al99,5 bevonatos",27111050]
[null,null,null,null,null,null,null,null,null,null,null,null,null,null,null,null,null,null,null,null,null,"Al másodnyersanyag Offset-litho",27111100]
[null,null,null,null,null,null,null,null,null,null,null,null,null,null,null,null,null,null,null,null,null,"Al másodnyersanyag Al99,0-99,5 bevonatos",27111300]
[null,null,null,null,null,null,null,null,null,null,null,null,null,null,null,null,null,null,null,null,null,"Al másodnyersanyag (Dural)",27202009]
[null,null,null,null,null,null,null,null,null,null,null,null,null,null,null,null,null,null,null,null,null,"Al másodnyersanyag AlMn",27303003]
[null,null,null,null,null,null,null,null,null,null,null,null,null,null,null,null,null,null,null,null,null,"Al másodnyersanyag AlMn1Mg1",27303004]
[null,null,null,null,null,null,null,null,null,null,null,null,null,null,null,null,null,null,null,null,null,"Al másodnyersanyag öntvény \"0 Fe\"",27404000]
[null,null,null,null,null,null,null,null,null,null,null,null,null,null,null,null,null,null,null,null,null,"Al másodnyersanyag keréktárcsa",27404001]
[null,null,null,null,null,null,null,null,null,null,null,null,null,null,null,null,null,null,null,null,null,"Al másodnyersanyag öntvény \"Fe\"",27494000]
[null,null,null,null,null,null,null,null,null,null,null,null,null,null,null,null,null,null,null,null,null,"Al másodnyersanyag AlMg1-3",27505754]
[null,null,null,null,null,null,null,null,null,null,null,null,null,null,null,null,null,null,null,null,null,"Al másodnyerasanyag AlMg1-3 bevonatos",27515754]
[null,null,null,null,null,null,null,null,null,null,null,null,null,null,null,null,null,null,null,null,null,"Al másodnyersanyag AlMgSi1 (6016)",27606016]
[null,null,null,null,null,null,null,null,null,null,null,null,null,null,null,null,null,null,null,null,null,"Al másodnyersanyag profil (6063)",27606063]
[null,null,null,null,null,null,null,null,null,null,null,null,null,null,null,null,null,null,null,null,null,"Al másodnyersanyag AlMgSi0,5 -1",27606082]
[null,null,null,null,null,null,null,null,null,null,null,null,null,null,null,null,null,null,null,null,null,"Al másodnyersanyag AlZnMg",27707000]
[null,null,null,null,null,null,null,null,null,null,null,null,null,null,null,null,null,null,null,null,null,"Al másodnyersanyag AlFeMn",27808006]
[null,null,null,null,null,null,null,null,null,null,null,null,null,null,null,null,null,null,null,null,null,"Al másodnyersanyag vegyes (tiszta)",27909000]
[null,null,null,null,null,null,null,null,null,null,null,null,null,null,null,null,null,null,null,null,null,"Al másodnyersanyag brazing Zn01",27909100]
[null,null,null,null,null,null,null,null,null,null,null,null,null,null,null,null,null,null,null,null,null,"Al másodnyersanyag brazing Zn1",27909101]
[null,null,null,null,null,null,null,null,null,null,null,null,null,null,null,null,null,null,null,null,null,"Al másodnyersanyag vegyes (bevont)",27919000]
[null,null,null,null,null,null,null,null,null,null,null,null,null,null,null,null,null,null,null,null,null,"Alumínium salak (öntészeti, darabos)",28404000]
[null,null,null,null,null,null,null,null,null,null,null,null,null,null,null,null,null,null,null,null,null,"Alumínium salak (öntészeti 1)",28404001]
[null,null,null,null,null,null,null,null,null,null,null,null,null,null,null,null,null,null,null,null,null,"Alumínium salak (öntészeti 2)",28404002]
[null,null,null,null,null,null,null,null,null,null,null,null,null,null,null,null,null,null,null,null,null,"Alumínium salak (öntészeti 3)",28404003]
[null,null,null,null,null,null,null,null,null,null,null,null,null,null,null,null,null,null,null,null,null,"Alumínium salak (öntészeti, csöpedék)",28404009]
[null,null,null,null,null,null,null,null,null,null,null,null,null,null,null,null,null,null,null,null,null,"Alumínium salak (alakítható darabos)",28909000]
[null,null,null,null,null,null,null,null,null,null,null,null,null,null,null,null,null,null,null,null,null,"Almínium salak (alakítható 1)",28909001]
[null,null,null,null,null,null,null,null,null,null,null,null,null,null,null,null,null,null,null,null,null,"Almínium salak (alakítható 2)",28909002]
[null,null,null,null,null,null,null,null,null,null,null,null,null,null,null,null,null,null,null,null,null,"Almínium salak (alakítható 3)",28909003]
[null,null,null,null,null,null,null,null,null,null,null,null,null,null,null,null,null,null,null,null,null,"Alu salak (kemence salak) DIN 226",28909226]
[null,null,null,null,null,null,null,null,null,null,null,null,null,null,null,null,null,null,null,null,null,"Al sóssalak",28999000]
[null,null,null,null,null,null,null,null,null,null,null,null,null,null,null,null,null,null,null,null,null,"Füstgázpor",30000000]
[null,null,null,null,null,null,null,null,null,null,null,null,null,null,null,null,null,null,null,null,null,"Al huzal ötvözetlen 1050",31101050]
[null,null,null,null,null,null,null,null,null,null,null,null,null,null,null,null,null,null,null,null,null,"Al huzal ötvözetlen 1070",31101070]
[null,null,null,null,null,null,null,null,null,null,null,null,null,null,null,null,null,null,null,null,null,"Al huzal ötvözetlen (dezox)",31101100]
[null,null,null,null,null,null,null,null,null,null,null,null,null,null,null,null,null,null,null,null,null,"Al huzal ötvözetlen 1370",31101370]
[null,null,null,null,null,null,null,null,null,null,null,null,null,null,null,null,null,null,null,null,null,"Al huzal ötvözött ENAW 4043",31404043]
[null,null,null,null,null,null,null,null,null,null,null,null,null,null,null,null,null,null,null,null,null,"Al huzal ötvözött ENAW 5052",31605052]
[null,null,null,null,null,null,null,null,null,null,null,null,null,null,null,null,null,null,null,null,null,"Al huzal ötvözött ENAW 5754",31605754]
[null,null,null,null,null,null,null,null,null,null,null,null,null,null,null,null,null,null,null,null,null,"Al huzal ötvözött ENAW 6101",31606101]
[null,null,null,null,null,null,null,null,null,null,null,null,null,null,null,null,null,null,null,null,null,"Al huzal ötvözött (dezox)",31909000]
[null,null,null,null,null,null,null,null,null,null,null,null,null,null,null,null,null,null,null,null,null,"Ötvözött alumínium lemez",32500000]
[null,null,null,null,null,null,null,null,null,null,null,null,null,null,null,null,null,null,null,null,null,"Réz katóda",40000000]
[null,null,null,null,null,null,null,null,null,null,null,null,null,null,null,null,null,null,null,null,null,"Réz hulladék minősítés alatt",40000001]
[null,null,null,null,null,null,null,null,null,null,null,null,null,null,null,null,null,null,null,null,null,"Réz hulladék (millberry)",41100000]
[null,null,null,null,null,null,null,null,null,null,null,null,null,null,null,null,null,null,null,null,null,"Réz hulladék (berry)",41100001]
[null,null,null,null,null,null,null,null,null,null,null,null,null,null,null,null,null,null,null,null,null,"Réz hulladék (kábel)",41190000]
[null,null,null,null,null,null,null,null,null,null,null,null,null,null,null,null,null,null,null,null,null,"Réz sárgaréz hull. Ms58",41205863]
[null,null,null,null,null,null,null,null,null,null,null,null,null,null,null,null,null,null,null,null,null,"Réz sárgaréz hull. Ms63",41206337]
[null,null,null,null,null,null,null,null,null,null,null,null,null,null,null,null,null,null,null,null,null,"Réz sárgaréz hull. Ms70",41207030]
[null,null,null,null,null,null,null,null,null,null,null,null,null,null,null,null,null,null,null,null,null,"Réz sárgaréz hull. Ms80",41208020]
[null,null,null,null,null,null,null,null,null,null,null,null,null,null,null,null,null,null,null,null,null,"Bronz hulladék",41309000]
[null,null,null,null,null,null,null,null,null,null,null,null,null,null,null,null,null,null,null,null,null,"Réz hulladék finomítási",41400004]
[null,null,null,null,null,null,null,null,null,null,null,null,null,null,null,null,null,null,null,null,null,"Réz hulladék Cu-Sr hűtő",41400009]
[null,null,null,null,null,null,null,null,null,null,null,null,null,null,null,null,null,null,null,null,null,"Réz hul. Ms58 sárgaréz forgács",42205863]
[null,null,null,null,null,null,null,null,null,null,null,null,null,null,null,null,null,null,null,null,null,"Réz hull. Ms63 sárgaréz forgács",42206337]
[null,null,null,null,null,null,null,null,null,null,null,null,null,null,null,null,null,null,null,null,null,"Vegyes réz hulladék forgács",42900000]
[null,null,null,null,null,null,null,null,null,null,null,null,null,null,null,null,null,null,null,null,null,"Réz hulladék 1 granulátum",43100003]
[null,null,null,null,null,null,null,null,null,null,null,null,null,null,null,null,null,null,null,null,null,"Réz hull. granulátum Al tartalommal",43100004]
[null,null,null,null,null,null,null,null,null,null,null,null,null,null,null,null,null,null,null,null,null,"Réz hulladék vörösréz \"candy\"",44205863]
[null,null,null,null,null,null,null,null,null,null,null,null,null,null,null,null,null,null,null,null,null,"Réz másodnyersanyag (millberry)",45100000]
[null,null,null,null,null,null,null,null,null,null,null,null,null,null,null,null,null,null,null,null,null,"Réz másodnyersanyag (berry)",45100001]
[null,null,null,null,null,null,null,null,null,null,null,null,null,null,null,null,null,null,null,null,null,"Réz másodnyersanyag 1 granulátum",45100003]
[null,null,null,null,null,null,null,null,null,null,null,null,null,null,null,null,null,null,null,null,null,"Réz másodnyersanyag sárgaréz forgács",45100004]
[null,null,null,null,null,null,null,null,null,null,null,null,null,null,null,null,null,null,null,null,null,"Réz hulladék (millberry)",46110000]
[null,null,null,null,null,null,null,null,null,null,null,null,null,null,null,null,null,null,null,null,null,"Réz hulladék (berry)",46110001]
[null,null,null,null,null,null,null,null,null,null,null,null,null,null,null,null,null,null,null,null,null,"Réz hulladék 1 granulátum",46310003]
[null,null,null,null,null,null,null,null,null,null,null,null,null,null,null,null,null,null,null,null,null,"Réz hulladék finomítási",46400004]
[null,null,null,null,null,null,null,null,null,null,null,null,null,null,null,null,null,null,null,null,null,"Réz másodnyersanyag (millberry)",47100000]
[null,null,null,null,null,null,null,null,null,null,null,null,null,null,null,null,null,null,null,null,null,"Réz másodnyersanyag (berry)",47100001]
[null,null,null,null,null,null,null,null,null,null,null,null,null,null,null,null,null,null,null,null,null,"Réz hulladék 1 granulátum",47310003]
[null,null,null,null,null,null,null,null,null,null,null,null,null,null,null,null,null,null,null,null,null,"Réz hulladék vörösréz",49100000]
[null,null,null,null,null,null,null,null,null,null,null,null,null,null,null,null,null,null,null,null,null,"Vas- és acélhulladék",50000000]
[null,null,null,null,null,null,null,null,null,null,null,null,null,null,null,null,null,null,null,null,null,"Magasan ötvözött acélhulladék CrNi 18/8",50101808]
[null,null,null,null,null,null,null,null,null,null,null,null,null,null,null,null,null,null,null,null,null,"Magasan ötvözött acélhulladék CrNi 18/9",50101809]
[null,null,null,null,null,null,null,null,null,null,null,null,null,null,null,null,null,null,null,null,null,"Magasan ötvözött acélhulladék CrNi 18/10",50101810]
[null,null,null,null,null,null,null,null,null,null,null,null,null,null,null,null,null,null,null,null,null,"Ötvözött acélhulladék ötvözőkkel",50101812]
[null,null,null,null,null,null,null,null,null,null,null,null,null,null,null,null,null,null,null,null,null,"CrNi Acélforgács",50301808]
[null,null,null,null,null,null,null,null,null,null,null,null,null,null,null,null,null,null,null,null,null,"Vas- és acél másodnyersanyag",55000000]
[null,null,null,null,null,null,null,null,null,null,null,null,null,null,null,null,null,null,null,null,null,"Nemesacél másodnyersanyag",55101810]
[null,null,null,null,null,null,null,null,null,null,null,null,null,null,null,null,null,null,null,null,null,"Cink ötvözetlen tömb",60000000]
[null,null,null,null,null,null,null,null,null,null,null,null,null,null,null,null,null,null,null,null,null,"Cink tömb ötvözött ZAMAK ZnAl4Cu1",60000100]
[null,null,null,null,null,null,null,null,null,null,null,null,null,null,null,null,null,null,null,null,null,"Cink hulladék",60100000]
[null,null,null,null,null,null,null,null,null,null,null,null,null,null,null,null,null,null,null,null,null,"Cink hulladék spiáter",60100001]
[null,null,null,null,null,null,null,null,null,null,null,null,null,null,null,null,null,null,null,null,null,"Cink hulladék",66100000]
[null,null,null,null,null,null,null,null,null,null,null,null,null,null,null,null,null,null,null,null,null,"Ötvözetlen szilicium",70100000]
[null,null,null,null,null,null,null,null,null,null,null,null,null,null,null,null,null,null,null,null,null,"Szilicium 92",70100092]
[null,null,null,null,null,null,null,null,null,null,null,null,null,null,null,null,null,null,null,null,null,"Szilicium 95",70100095]
[null,null,null,null,null,null,null,null,null,null,null,null,null,null,null,null,null,null,null,null,null,"Szilicium 97",70100097]
[null,null,null,null,null,null,null,null,null,null,null,null,null,null,null,null,null,null,null,null,null,"Szilícium 441",70100441]
[null,null,null,null,null,null,null,null,null,null,null,null,null,null,null,null,null,null,null,null,null,"Szilícium 551",70100551]
[null,null,null,null,null,null,null,null,null,null,null,null,null,null,null,null,null,null,null,null,null,"Szilícium 553",70100553]
[null,null,null,null,null,null,null,null,null,null,null,null,null,null,null,null,null,null,null,null,null,"Szilícium 2202",70102202]
[null,null,null,null,null,null,null,null,null,null,null,null,null,null,null,null,null,null,null,null,null,"Szilícium 3303",70103303]
[null,null,null,null,null,null,null,null,null,null,null,null,null,null,null,null,null,null,null,null,null,"Ólom hulladék",71107503]
[null,null,null,null,null,null,null,null,null,null,null,null,null,null,null,null,null,null,null,null,null,"Ón hulladék",71208002]
[null,null,null,null,null,null,null,null,null,null,null,null,null,null,null,null,null,null,null,null,null,"Magnézium hulladék",71308104]
[null,null,null,null,null,null,null,null,null,null,null,null,null,null,null,null,null,null,null,null,null,"Wolfram hulladék",71408101]
[null,null,null,null,null,null,null,null,null,null,null,null,null,null,null,null,null,null,null,null,null,"Titán hulladék",71508108]
[null,null,null,null,null,null,null,null,null,null,null,null,null,null,null,null,null,null,null,null,null,"Vörösiszap hulladék",71602620]
[null,null,null,null,null,null,null,null,null,null,null,null,null,null,null,null,null,null,null,null,null,"Szilícium 441",76010441]
[null,null,null,null,null,null,null,null,null,null,null,null,null,null,null,null,null,null,null,null,null,"Szilicium 95",76100095]
[null,null,null,null,null,null,null,null,null,null,null,null,null,null,null,null,null,null,null,null,null,"Szilicium 97",76100097]
[null,null,null,null,null,null,null,null,null,null,null,null,null,null,null,null,null,null,null,null,null,"Szilícium 551",76100551]
[null,null,null,null,null,null,null,null,null,null,null,null,null,null,null,null,null,null,null,null,null,"Szilícium 553",76100553]
[null,null,null,null,null,null,null,null,null,null,null,null,null,null,null,null,null,null,null,null,null,"Szilícium 2202",76102202]
[null,null,null,null,null,null,null,null,null,null,null,null,null,null,null,null,null,null,null,null,null,"Szilícium 3303",76103303]
[null,null,null,null,null,null,null,null,null,null,null,null,null,null,null,null,null,null,null,null,null,"Ólom hulladék",76107503]
[null,null,null,null,null,null,null,null,null,null,null,null,null,null,null,null,null,null,null,null,null,"Magnézium hulladék",76308104]

{"sheet":"cimke","index":1,"n_rows":31,"n_cols":11,"rows_kept":31,"cut":false,"hidden":true,"merged":[[16,0,16,1],[16,4,16,5],[14,4,14,5],[14,0,14,1],[13,5,13,6],[13,1,13,2],[0,0,0,1],[0,4,0,5],[8,0,8,1],[8,4,8,5],[6,0,6,1],[5,1,5,2],[5,5,5,6],[6,4,6,5],[30,0,30,1],[29,5,29,6],[30,4,30,5],[24,0,24,1],[24,4,24,5],[21,1,21,2],[22,0,22,1],[21,5,21,6],[22,4,22,5],[29,1,29,2]]}
["Martin Metals Kft.",null,{"$f":"IF(J2>0,VLOOKUP(J2,Munkalap!C13:N44,2,FALSE),\" \")","v":" "},null,"Martin Metals Kft.",null,{"$f":"IF(J3>0,VLOOKUP(J3,Munkalap!C13:N44,2,FALSE),\" \")","v":" "},null,null,"Sorszám","számot írj!"]
["Bejövő helykód",{"$f":"IF(J2>0,VLOOKUP(J2,Munkalap!A13:N44,13,FALSE),\" \")","v":" "},{"$f":"IF(J2>0,VLOOKUP(J2,Munkalap!A13:M44,2,FALSE),\" \")","v":" "},null,"Bejövő helykód",{"$f":"IF(J3>0,VLOOKUP(J3,Munkalap!A13:N44,13,FALSE),\" \")","v":" "},{"$f":"IF(J3>0,VLOOKUP(J3,Munkalap!A13:M44,2,FALSE),\" \")","v":" "}]
["Új helykód",null,{"$f":"IF(K2>0,IF(J2>0,VLOOKUP(J2,Munkalap!A13:M44,10,FALSE),\" \"),IF(J2>0,VLOOKUP(J2,Munkalap!A13:M44,7,FALSE),\" \"))","v":" "},null,"Új helykód",null,{"$f":"IF(K3>0,IF(J3>0,VLOOKUP(J3,Munkalap!A13:M44,10,FALSE),\" \"),IF(J3>0,VLOOKUP(J3,Munkalap!A13:M44,7,FALSE),\" \"))","v":" "}]
["Új helykód 2",null,{"$f":"IF(K2>0,IF(J2>0,VLOOKUP(J2,Munkalap!A13:M44,11,FALSE),\" \"),IF(J2>0,VLOOKUP(J2,Munkalap!A13:M44,8,FALSE),\" \"))","v":" "},null,"Új helykód 2",null,{"$f":"IF(K3>0,IF(J3>0,VLOOKUP(J3,Munkalap!A13:M44,11,FALSE),\" \"),IF(J3>0,VLOOKUP(J3,Munkalap!A13:M44,8,FALSE),\" \"))","v":" "}]
[{"$f":"IF(IF(J2>0,VLOOKUP(J2,Munkalap!A13:N44,5,FALSE),\" \")>0,IF(J2>0,VLOOKUP(J2,Munkalap!A13:N44,5,FALSE),\" \"),\"\")","v":" "},null,{"$f":"IF(K2>0,IF(J2>0,VLOOKUP(J2,Munkalap!A13:M44,12,FALSE),\" \"),IF(J2>0,VLOOKUP(J2,Munkalap!A13:M44,9,FALSE),\" \"))","v":" "},null,{"$f":"IF(IF(J3>0,VLOOKUP(J3,Munkalap!A13:N44,5,FALSE),\" \")>0,IF(J3>0,VLOOKUP(J3,Munkalap!A13:N44,5,FALSE),\" \"),\"\")","v":" "},null,{"$f":"IF(K3>0,IF(J3>0,VLOOKUP(J3,Munkalap!A13:M44,12,FALSE),\" \"),IF(J3>0,VLOOKUP(J3,Munkalap!A13:M44,9,FALSE),\" \"))","v":" "}]
["Megjegyzés:",{"$f":"IF(IF(J2>0,VLOOKUP(J2,Munkalap!A13:N44,14,FALSE),\" \")>0,IF(J2>0,VLOOKUP(J2,Munkalap!A13:N44,14,FALSE),\" \"),\"\")","v":" "},null,null,"Megjegyzés:",{"$f":"IF(IF(J3>0,VLOOKUP(J3,Munkalap!A13:N44,14,FALSE),\" \")>0,IF(J3>0,VLOOKUP(J3,Munkalap!A13:N44,14,FALSE),\" \"),\"\")","v":" "},{"$f":"IF(J3>0,VLOOKUP(J3,Munkalap!A13:N44,14,FALSE),\" \")","v":" "}]
[{"$f":"IF(IF(J2>0,Munkalap!H6,\"\")>0,IF(J2>0,Munkalap!H6,\"\"),\"\")","v":""},null,{"$f":"IF(IF(J2>0,Munkalap!#REF!,\"\")>0,IF(J2>0,Munkalap!#REF!,\"\"),\"\")","v":""},null,{"$f":"IF(IF(J3>0,Munkalap!H6,\"\")>0,IF(J3>0,Munkalap!H6,\"\"),\"\")","v":""},null,{"$f":"IF(IF(J3>0,Munkalap!#REF!,\"\")>0,IF(J3>0,Munkalap!#REF!,\"\"),\"\")","v":""}]
[]
["Martin Metals Kft.",null,{"$f":"IF(J4>0,VLOOKUP(J4,Munkalap!C13:N44,2,FALSE),\" \")","v":" "},null,"Martin Metals Kft.",null,{"$f":"IF(J5>0,VLOOKUP(J5,Munkalap!C13:N44,2,FALSE),\" \")","v":" "}]
["Bejövő helykód",{"$f":"IF(J4>0,VLOOKUP(J4,Munkalap!A13:N44,13,FALSE),\" \")","v":" "},{"$f":"IF(J4>0,VLOOKUP(J4,Munkalap!A13:M44,2,FALSE),\" \")","v":" "},null,"Bejövő helykód",{"$f":"IF(J5>0,VLOOKUP(J5,Munkalap!A13:N44,13,FALSE),\" \")","v":" "},{"$f":"IF(J5>0,VLOOKUP(J5,Munkalap!A13:M44,2,FALSE),\" \")","v":" "}]
["Új helykód",null,{"$f":"IF(K4>0,IF(J4>0,VLOOKUP(J4,Munkalap!A13:M44,10,FALSE),\" \"),IF(J4>0,VLOOKUP(J4,Munkalap!A13:M44,7,FALSE),\" \"))","v":" "},null,"Új helykód",null,{"$f":"IF(K5>0,IF(J5>0,VLOOKUP(J5,Munkalap!A13:M44,10,FALSE),\" \"),IF(J5>0,VLOOKUP(J5,Munkalap!A13:M44,7,FALSE),\" \"))","v":" "}]
["Új helykód 2",null,{"$f":"IF(K4>0,IF(J4>0,VLOOKUP(J4,Munkalap!A13:M44,11,FALSE),\" \"),IF(J4>0,VLOOKUP(J4,Munkalap!A13:M44,8,FALSE),\" \"))","v":" "},null,"Új helykód 2",null,{"$f":"IF(K5>0,IF(J5>0,VLOOKUP(J5,Munkalap!A13:M44,11,FALSE),\" \"),IF(J5>0,VLOOKUP(J5,Munkalap!A13:M44,8,FALSE),\" \"))","v":" "}]
[{"$f":"IF(IF(J4>0,VLOOKUP(J4,Munkalap!A13:N44,5,FALSE),\" \")>0,IF(J4>0,VLOOKUP(J4,Munkalap!A13:N44,5,FALSE),\" \"),\"\")","v":" "},null,{"$f":"IF(K4>0,IF(J4>0,VLOOKUP(J4,Munkalap!A13:M44,12,FALSE),\" \"),IF(J4>0,VLOOKUP(J4,Munkalap!A13:M44,9,FALSE),\" \"))","v":" "},null,{"$f":"IF(IF(J5>0,VLOOKUP(J5,Munkalap!A13:N44,5,FALSE),\" \")>0,IF(J5>0,VLOOKUP(J5,Munkalap!A13:N44,5,FALSE),\" \"),\"\")","v":" "},null,{"$f":"IF(K5>0,IF(J5>0,VLOOKUP(J5,Munkalap!A13:M44,12,FALSE),\" \"),IF(J5>0,VLOOKUP(J5,Munkalap!A13:M44,9,FALSE),\" \"))","v":" "}]
["Megjegyzés:",{"$f":"IF(IF(J4>0,VLOOKUP(J4,Munkalap!A13:N44,14,FALSE),\" \")>0,IF(J4>0,VLOOKUP(J4,Munkalap!A13:N44,14,FALSE),\" \"),\"\")","v":" "},{"$f":"IF(J4>0,VLOOKUP(J4,Munkalap!A13:N44,14,FALSE),\" \")","v":" "},null,"Megjegyzés:",{"$f":"IF(IF(J5>0,VLOOKUP(J5,Munkalap!A13:N44,14,FALSE),\" \")>0,IF(J5>0,VLOOKUP(J5,Munkalap!A13:N44,14,FALSE),\" \"),\"\")","v":" "},{"$f":"IF(J5>0,VLOOKUP(J5,Munkalap!A13:N44,14,FALSE),\" \")","v":" "}]
[{"$f":"IF(IF(J4>0,Munkalap!H6,\"\")>0,IF(J4>0,Munkalap!H6,\"\"),\"\")","v":""},null,{"$f":"IF(IF(J4>0,Munkalap!#REF!,\"\")>0,IF(J4>0,Munkalap!#REF!,\"\"),\"\")","v":""},null,{"$f":"IF(IF(J5>0,Munkalap!H6,\"\")>0,IF(J5>0,Munkalap!H6,\"\"),\"\")","v":""},null,{"$f":"IF(IF(J5>0,Munkalap!#REF!,\"\")>0,IF(J5>0,Munkalap!#REF!,\"\"),\"\")","v":""}]
[]
["Martin Metals Kft.",null,{"$f":"IF(J6>0,VLOOKUP(J6,Munkalap!C13:N44,2,FALSE),\" \")","v":" "},null,"Martin Metals Kft.",null,{"$f":"IF(J7>0,VLOOKUP(J7,Munkalap!C13:N44,2,FALSE),\" \")","v":" "}]
["Bejövő helykód",{"$f":"IF(J6>0,VLOOKUP(J6,Munkalap!A13:N44,13,FALSE),\" \")","v":" "},{"$f":"IF(J6>0,VLOOKUP(J6,Munkalap!A13:M44,2,FALSE),\" \")","v":" "},null,"Bejövő helykód",{"$f":"IF(J7>0,VLOOKUP(J7,Munkalap!A13:N44,13,FALSE),\" \")","v":" "},{"$f":"IF(J7>0,VLOOKUP(J7,Munkalap!A13:M44,2,FALSE),\" \")","v":" "}]
["Új helykód",null,{"$f":"IF(K6>0,IF(J6>0,VLOOKUP(J6,Munkalap!A13:M44,10,FALSE),\" \"),IF(J6>0,VLOOKUP(J6,Munkalap!A13:M44,7,FALSE),\" \"))","v":" "},null,"Új helykód",null,{"$f":"IF(K7>0,IF(J7>0,VLOOKUP(J7,Munkalap!A13:M44,10,FALSE),\" \"),IF(J7>0,VLOOKUP(J7,Munkalap!A13:M44,7,FALSE),\" \"))","v":" "}]
["Új helykód 2",null,{"$f":"IF(K6>0,IF(J6>0,VLOOKUP(J6,Munkalap!A13:M44,11,FALSE),\" \"),IF(J6>0,VLOOKUP(J6,Munkalap!A13:M44,8,FALSE),\" \"))","v":" "},null,"Új helykód 2",null,{"$f":"IF(K7>0,IF(J7>0,VLOOKUP(J7,Munkalap!A13:M44,11,FALSE),\" \"),IF(J7>0,VLOOKUP(J7,Munkalap!A13:M44,8,FALSE),\" \"))","v":" "}]
[{"$f":"IF(IF(J6>0,VLOOKUP(J6,Munkalap!A13:N44,5,FALSE),\" \")>0,IF(J6>0,VLOOKUP(J6,Munkalap!A13:N44,5,FALSE),\" \"),\"\")","v":" "},null,{"$f":"IF(K6>0,IF(J6>0,VLOOKUP(J6,Munkalap!A13:M44,12,FALSE),\" \"),IF(J6>0,VLOOKUP(J6,Munkalap!A13:M44,9,FALSE),\" \"))","v":" "},null,{"$f":"IF(IF(J7>0,VLOOKUP(J7,Munkalap!A13:N44,5,FALSE),\" \")>0,IF(J7>0,VLOOKUP(J7,Munkalap!A13:N44,5,FALSE),\" \"),\"\")","v":" "},null,{"$f":"IF(K7>0,IF(J7>0,VLOOKUP(J7,Munkalap!A13:M44,12,FALSE),\" \"),IF(J7>0,VLOOKUP(J7,Munkalap!A13:M44,9,FALSE),\" \"))","v":" "}]
["Megjegyzés:",{"$f":"IF(IF(J6>0,VLOOKUP(J6,Munkalap!A13:N44,14,FALSE),\" \")>0,IF(J6>0,VLOOKUP(J6,Munkalap!A13:N44,14,FALSE),\" \"),\"\")","v":" "},{"$f":"IF(J6>0,VLOOKUP(J6,Munkalap!A13:N44,14,FALSE),\" \")","v":" "},null,"Megjegyzés:",{"$f":"IF(IF(J7>0,VLOOKUP(J7,Munkalap!A13:N44,14,FALSE),\" \")>0,IF(J7>0,VLOOKUP(J7,Munkalap!A13:N44,14,FALSE),\" \"),\"\")","v":" "},{"$f":"IF(J7>0,VLOOKUP(J7,Munkalap!A13:N44,14,FALSE),\" \")","v":" "}]
[{"$f":"IF(IF(J6>0,Munkalap!H6,\"\")>0,IF(J6>0,Munkalap!H6,\"\"),\"\")","v":""},null,{"$f":"IF(IF(J6>0,Munkalap!#REF!,\"\")>0,IF(J6>0,Munkalap!#REF!,\"\"),\"\")","v":""},null,{"$f":"IF(IF(J7>0,Munkalap!H6,\"\")>0,IF(J7>0,Munkalap!H6,\"\"),\"\")","v":""},null,{"$f":"IF(IF(J7>0,Munkalap!#REF!,\"\")>0,IF(J7>0,Munkalap!#REF!,\"\"),\"\")","v":""}]
[]
["Martin Metals Kft.",null,{"$f":"IF(J8>0,VLOOKUP(J8,Munkalap!C13:N44,2,FALSE),\" \")","v":" "},null,"Martin Metals Kft.",null,{"$f":"IF(J9>0,VLOOKUP(J9,Munkalap!C13:N44,2,FALSE),\" \")","v":" "}]
["Bejövő helykód",{"$f":"IF(J8>0,VLOOKUP(J8,Munkalap!A13:N44,13,FALSE),\" \")","v":" "},{"$f":"IF(J8>0,VLOOKUP(J8,Munkalap!A13:M44,2,FALSE),\" \")","v":" "},null,"Bejövő helykód",{"$f":"IF(J9>0,VLOOKUP(J9,Munkalap!A13:N44,13,FALSE),\" \")","v":" "},{"$f":"IF(J9>0,VLOOKUP(J9,Munkalap!A13:M44,2,FALSE),\" \")","v":" "}]
["Új helykód",null,{"$f":"IF(K8>0,IF(J8>0,VLOOKUP(J8,Munkalap!A13:M44,10,FALSE),\" \"),IF(J8>0,VLOOKUP(J8,Munkalap!A13:M44,7,FALSE),\" \"))","v":" "},null,"Új helykód",null,{"$f":"IF(K9>0,IF(J9>0,VLOOKUP(J9,Munkalap!A13:M44,10,FALSE),\" \"),IF(J9>0,VLOOKUP(J9,Munkalap!A13:M44,7,FALSE),\" \"))","v":" "}]
["Új helykód 2",null,{"$f":"IF(K8>0,IF(J8>0,VLOOKUP(J8,Munkalap!A13:M44,11,FALSE),\" \"),IF(J8>0,VLOOKUP(J8,Munkalap!A13:M44,8,FALSE),\" \"))","v":" "},null,"Új helykód 2",null,{"$f":"IF(K9>0,IF(J9>0,VLOOKUP(J9,Munkalap!A13:M44,11,FALSE),\" \"),IF(J9>0,VLOOKUP(J9,Munkalap!A13:M44,8,FALSE),\" \"))","v":" "}]
[{"$f":"IF(IF(J8>0,VLOOKUP(J8,Munkalap!A13:N44,5,FALSE),\" \")>0,IF(J8>0,VLOOKUP(J8,Munkalap!A13:N44,5,FALSE),\" \"),\"\")","v":" "},null,{"$f":"IF(K8>0,IF(J8>0,VLOOKUP(J8,Munkalap!A13:M44,12,FALSE),\" \"),IF(J8>0,VLOOKUP(J8,Munkalap!A13:M44,9,FALSE),\" \"))","v":" "},null,{"$f":"IF(IF(J9>0,VLOOKUP(J9,Munkalap!A13:N44,5,FALSE),\" \")>0,IF(J9>0,VLOOKUP(J9,Munkalap!A13:N44,5,FALSE),\" \"),\"\")","v":" "},null,{"$f":"IF(K9>0,IF(J9>0,VLOOKUP(J9,Munkalap!A13:M44,12,FALSE),\" \"),IF(J9>0,VLOOKUP(J9,Munkalap!A13:M44,9,FALSE),\" \"))","v":" "}]
["Megjegyzés:",{"$f":"IF(IF(J8>0,VLOOKUP(J8,Munkalap!A13:N44,14,FALSE),\" \")>0,IF(J8>0,VLOOKUP(J8,Munkalap!A13:N44,14,FALSE),\" \"),\"\")","v":" "},{"$f":"IF(J8>0,VLOOKUP(J8,Munkalap!A13:N44,14,FALSE),\" \")","v":" "},null,"Megjegyzés:",{"$f":"IF(IF(J9>0,VLOOKUP(J9,Munkalap!A13:N44,14,FALSE),\" \")>0,IF(J9>0,VLOOKUP(J9,Munkalap!A13:N44,14,FALSE),\" \"),\"\")","v":" "},{"$f":"IF(J9>0,VLOOKUP(J9,Munkalap!A13:N44,14,FALSE),\" \")","v":" "}]
[{"$f":"IF(IF(J8>0,Munkalap!H6,\"\")>0,IF(J8>0,Munkalap!H6,\"\"),\"\")","v":""},null,{"$f":"IF(IF(J8>0,Munkalap!#REF!,\"\")>0,IF(J8>0,Munkalap!#REF!,\"\"),\"\")","v":""},null,{"$f":"IF(IF(J9>0,Munkalap!H6,\"\")>0,IF(J9>0,Munkalap!H6,\"\"),\"\")","v":""},null,{"$f":"IF(IF(J9>0,Munkalap!#REF!,\"\")>0,IF(J9>0,Munkalap!#REF!,\"\"),\"\")","v":""}]

{"sheet":"cimkenyomtato","index":2,"n_rows":224,"n_cols":3,"rows_kept":224,"cut":false,"hidden":false,"merged":[[11,0,11,1],[12,1,12,2],[13,0,13,1],[0,0,0,1],[5,1,5,2],[6,0,6,1],[4,0,4,1],[7,0,7,1],[25,0,25,1],[26,1,26,2],[27,0,27,1],[28,0,28,1],[32,0,32,1],[14,0,14,1],[18,0,18,1],[19,1,19,2],[20,0,20,1],[21,0,21,1],[41,0,41,1],[42,0,42,1],[46,0,46,1],[47,1,47,2],[48,0,48,1],[33,1,33,2],[34,0,34,1],[35,0,35,1],[39,0,39,1],[40,1,40,2],[60,0,60,1],[61,1,61,2],[62,0,62,1],[63,0,63,1],[67,0,67,1],[49,0,49,1],[53,0,53,1],[54,1,54,2],[55,0,55,1],[56,0,56,1],[76,0,76,1],[77,0,77,1],[81,0,81,1],[82,1,82,2],[83,0,83,1],[68,1,68,2],[69,0,69,1],[70,0,70,1],[74,0,74,1],[75,1,75,2],[95,0,95,1],[96,1,96,2],[97,0,97,1],[98,0,98,1],[102,0,102,1],[84,0,84,1],[88,0,88,1],[89,1,89,2],[90,0,90,1],[91,0,91,1],[111,0,111,1],[112,0,112,1],[116,0,116,1],[117,1,117,2],[118,0,118,1],[103,1,103,2],[104,0,104,1],[105,0,105,1],[109,0,109,1],[110,1,110,2],[130,0,130,1],[131,1,131,2],[132,0,132,1],[133,0,133,1],[137,0,137,1],[119,0,119,1],[123,0,123,1],[124,1,124,2],[125,0,125,1],[126,0,126,1],[146,0,146,1],[147,0,147,1],[151,0,151,1],[152,1,152,2],[153,0,153,1],[138,1,138,2],[139,0,139,1],[140,0,140,1],[144,0,144,1],[145,1,145,2],[165,0,165,1],[166,1,166,2],[167,0,167,1],[168,0,168,1],[172,0,172,1],[154,0,154,1],[158,0,158,1],[159,1,159,2],[160,0,160,1],[161,0,161,1],[181,0,181,1],[182,0,182,1],[186,0,186,1],[187,1,187,2],[188,0,188,1],[173,1,173,2],[174,0,174,1],[175,0,175,1],[179,0,179,1],[180,1,180,2],[200,0,200,1],[201,1,201,2],[202,0,202,1],[203,0,203,1],[207,0,207,1],[189,0,189,1],[193,0,193,1],[194,1,194,2],[195,0,195,1],[196,0,196,1],[216,0,216,1],[217,0,217,1],[221,0,221,1],[222,1,222,2],[223,0,223,1],[208,1,208,2],[209,0,209,1],[210,0,210,1],[214,0,214,1],[215,1,215,2]]}
["Martin Metals Kft.",null,{"$f":"IF(Munkalap!A13>0,VLOOKUP(Munkalap!A13,Munkalap!$A$13:P44,15,FALSE),\" \")","v":""}]
["Bejövő helykód",{"$f":"IF(Munkalap!A13>0,VLOOKUP(Munkalap!A13,Munkalap!A13:N44,13,FALSE),\" \")","v":0},{"$f":"IF(Munkalap!A13>0,VLOOKUP(Munkalap!A13,Munkalap!$A$13:$P$44,14,FALSE),\" \")","v":0}]
["Új helykód",null,{"$f":"IF(Munkalap!A13>0,VLOOKUP(Munkalap!A13,Munkalap!A13:N44,10,FALSE),\" \")","v":0}]
["Új helykód 2",null,{"$f":"IF(Munkalap!A13>0,VLOOKUP(Munkalap!A13,Munkalap!A13:N44,11,FALSE),\" \")","v":0}]
[{"$f":"IF(Munkalap!A14>0,VLOOKUP(Munkalap!A14,Munkalap!A14:N51,5,FALSE),\" \")","v":0},null,{"$f":"IF(Munkalap!A13>0,VLOOKUP(Munkalap!A13,Munkalap!A13:N44,12,FALSE),\" \")","v":""}]
["Megjegyzés:",{"$f":"IF(Munkalap!A13>0,VLOOKUP(Munkalap!A13,Munkalap!$A$13:$P$44,16,FALSE),\" \")","v":0}]
[{"$f":"IF(Munkalap!$J$6>0,Munkalap!$J$6,\"\")","v":""},null,{"$f":"IF(Munkalap!$N$3>0,Munkalap!$N$3,\"\")","v":""}]
["Martin Metals Kft.",null,{"$f":"IF(Munkalap!A14>0,VLOOKUP(Munkalap!A14,Munkalap!$A$13:P44,15,FALSE),\" \")","v":""}]
["Bejövő helykód",{"$f":"IF(Munkalap!A14>0,VLOOKUP(Munkalap!A14,Munkalap!A14:N51,13,FALSE),\" \")","v":0},{"$f":"IF(Munkalap!A14>0,VLOOKUP(Munkalap!A14,Munkalap!$A$13:$P$44,14,FALSE),\" \")","v":0}]
["Új helykód",null,{"$f":"IF(Munkalap!A14>0,VLOOKUP(Munkalap!A14,Munkalap!A14:N51,10,FALSE),\" \")","v":0}]
["Új helykód 2",null,{"$f":"IF(Munkalap!A14>0,VLOOKUP(Munkalap!A14,Munkalap!A14:N51,11,FALSE),\" \")","v":0}]
[{"$f":"IF(Munkalap!A14>0,VLOOKUP(Munkalap!A14,Munkalap!A14:N51,5,FALSE),\" \")","v":0},null,{"$f":"IF(Munkalap!A14>0,VLOOKUP(Munkalap!A14,Munkalap!A14:N51,12,FALSE),\" \")","v":""}]
["Megjegyzés:",{"$f":"IF(Munkalap!A14>0,VLOOKUP(Munkalap!A14,Munkalap!$A$13:$P$44,16,FALSE),\" \")","v":0}]
[{"$f":"IF(Munkalap!$J$6>0,Munkalap!$J$6,\"\")","v":""},null,{"$f":"IF(Munkalap!$N$3>0,Munkalap!$N$3,\"\")","v":""}]
["Martin Metals Kft.",null,{"$f":"IF(Munkalap!A15>0,VLOOKUP(Munkalap!A15,Munkalap!$A$13:P44,15,FALSE),\" \")","v":""}]
["Bejövő helykód",{"$f":"IF(Munkalap!A15>0,VLOOKUP(Munkalap!A15,Munkalap!A15:N58,13,FALSE),\" \")","v":0},{"$f":"IF(Munkalap!A15>0,VLOOKUP(Munkalap!A15,Munkalap!$A$13:$P$44,14,FALSE),\" \")","v":0}]
["Új helykód",null,{"$f":"IF(Munkalap!A15>0,VLOOKUP(Munkalap!A15,Munkalap!A15:N58,10,FALSE),\" \")","v":0}]
["Új helykód 2",null,{"$f":"IF(Munkalap!A15>0,VLOOKUP(Munkalap!A15,Munkalap!A15:N58,11,FALSE),\" \")","v":0}]
[{"$f":"IF(Munkalap!A15>0,VLOOKUP(Munkalap!A15,Munkalap!A15:N58,5,FALSE),\" \")","v":0},null,{"$f":"IF(Munkalap!A15>0,VLOOKUP(Munkalap!A15,Munkalap!A15:N58,12,FALSE),\" \")","v":""}]
["Megjegyzés:",{"$f":"IF(Munkalap!A15>0,VLOOKUP(Munkalap!A15,Munkalap!$A$13:$P$44,16,FALSE),\" \")","v":0}]
[{"$f":"IF(Munkalap!$J$6>0,Munkalap!$J$6,\"\")","v":""},null,{"$f":"IF(Munkalap!$N$3>0,Munkalap!$N$3,\"\")","v":""}]
["Martin Metals Kft.",null,{"$f":"IF(Munkalap!A16>0,VLOOKUP(Munkalap!A16,Munkalap!$A$13:P44,15,FALSE),\" \")","v":""}]
["Bejövő helykód",{"$f":"IF(Munkalap!A16>0,VLOOKUP(Munkalap!A16,Munkalap!A16:N61,13,FALSE),\" \")","v":0},{"$f":"IF(Munkalap!A16>0,VLOOKUP(Munkalap!A16,Munkalap!$A$13:$P$44,14,FALSE),\" \")","v":0}]
["Új helykód",null,{"$f":"IF(Munkalap!A16>0,VLOOKUP(Munkalap!A16,Munkalap!A16:N61,10,FALSE),\" \")","v":0}]
["Új helykód 2",null,{"$f":"IF(Munkalap!A16>0,VLOOKUP(Munkalap!A16,Munkalap!A16:N61,11,FALSE),\" \")","v":0}]
[{"$f":"IF(Munkalap!A16>0,VLOOKUP(Munkalap!A16,Munkalap!A16:N61,5,FALSE),\" \")","v":0},null,{"$f":"IF(Munkalap!A16>0,VLOOKUP(Munkalap!A16,Munkalap!A16:N61,12,FALSE),\" \")","v":""}]
["Megjegyzés:",{"$f":"IF(Munkalap!A16>0,VLOOKUP(Munkalap!A16,Munkalap!$A$13:$P$44,16,FALSE),\" \")","v":0}]
[{"$f":"IF(Munkalap!$J$6>0,Munkalap!$J$6,\"\")","v":""},null,{"$f":"IF(Munkalap!$N$3>0,Munkalap!$N$3,\"\")","v":""}]
["Martin Metals Kft.",null,{"$f":"IF(Munkalap!A17>0,VLOOKUP(Munkalap!A17,Munkalap!$A$13:P44,15,FALSE),\" \")","v":""}]
["Bejövő helykód",{"$f":"IF(Munkalap!A17>0,VLOOKUP(Munkalap!A17,Munkalap!A17:N61,13,FALSE),\" \")","v":0},{"$f":"IF(Munkalap!A17>0,VLOOKUP(Munkalap!A17,Munkalap!$A$13:$P$44,14,FALSE),\" \")","v":0}]
["Új helykód",null,{"$f":"IF(Munkalap!A17>0,VLOOKUP(Munkalap!A17,Munkalap!A17:N61,10,FALSE),\" \")","v":0}]
["Új helykód 2",null,{"$f":"IF(Munkalap!A17>0,VLOOKUP(Munkalap!A17,Munkalap!A17:N61,11,FALSE),\" \")","v":0}]
[{"$f":"IF(Munkalap!A17>0,VLOOKUP(Munkalap!A17,Munkalap!A17:N61,5,FALSE),\" \")","v":0},null,{"$f":"IF(Munkalap!A17>0,VLOOKUP(Munkalap!A17,Munkalap!A17:N61,12,FALSE),\" \")","v":""}]
["Megjegyzés:",{"$f":"IF(Munkalap!A17>0,VLOOKUP(Munkalap!A17,Munkalap!$A$13:$P$44,16,FALSE),\" \")","v":0}]
[{"$f":"IF(Munkalap!$J$6>0,Munkalap!$J$6,\"\")","v":""},null,{"$f":"IF(Munkalap!$N$3>0,Munkalap!$N$3,\"\")","v":""}]
["Martin Metals Kft.",null,{"$f":"IF(Munkalap!A18>0,VLOOKUP(Munkalap!A18,Munkalap!$A$13:P44,15,FALSE),\" \")","v":""}]
["Bejövő helykód",{"$f":"IF(Munkalap!A18>0,VLOOKUP(Munkalap!A18,Munkalap!A18:N61,13,FALSE),\" \")","v":0},{"$f":"IF(Munkalap!A18>0,VLOOKUP(Munkalap!A18,Munkalap!$A$13:$P$44,14,FALSE),\" \")","v":0}]
["Új helykód",null,{"$f":"IF(Munkalap!A18>0,VLOOKUP(Munkalap!A18,Munkalap!A18:N61,10,FALSE),\" \")","v":0}]
["Új helykód 2",null,{"$f":"IF(Munkalap!A18>0,VLOOKUP(Munkalap!A18,Munkalap!A18:N61,11,FALSE),\" \")","v":0}]
[{"$f":"IF(Munkalap!A18>0,VLOOKUP(Munkalap!A18,Munkalap!A18:N61,5,FALSE),\" \")","v":0},null,{"$f":"IF(Munkalap!A18>0,VLOOKUP(Munkalap!A18,Munkalap!A18:N61,12,FALSE),\" \")","v":""}]
["Megjegyzés:",{"$f":"IF(Munkalap!A18>0,VLOOKUP(Munkalap!A18,Munkalap!$A$13:$P$44,16,FALSE),\" \")","v":0}]
[{"$f":"IF(Munkalap!$J$6>0,Munkalap!$J$6,\"\")","v":""},null,{"$f":"IF(Munkalap!$N$3>0,Munkalap!$N$3,\"\")","v":""}]
["Martin Metals Kft.",null,{"$f":"IF(Munkalap!A19>0,VLOOKUP(Munkalap!A19,Munkalap!$A$13:P44,15,FALSE),\" \")","v":""}]
["Bejövő helykód",{"$f":"IF(Munkalap!A19>0,VLOOKUP(Munkalap!A19,Munkalap!A19:N61,13,FALSE),\" \")","v":0},{"$f":"IF(Munkalap!A19>0,VLOOKUP(Munkalap!A19,Munkalap!$A$13:$P$44,14,FALSE),\" \")","v":0}]
["Új helykód",null,{"$f":"IF(Munkalap!A19>0,VLOOKUP(Munkalap!A19,Munkalap!A19:N61,10,FALSE),\" \")","v":0}]
["Új helykód 2",null,{"$f":"IF(Munkalap!A19>0,VLOOKUP(Munkalap!A19,Munkalap!A19:N61,11,FALSE),\" \")","v":0}]
[{"$f":"IF(Munkalap!A19>0,VLOOKUP(Munkalap!A19,Munkalap!A19:N61,5,FALSE),\" \")","v":0},null,{"$f":"IF(Munkalap!A19>0,VLOOKUP(Munkalap!A19,Munkalap!A19:N61,12,FALSE),\" \")","v":""}]
["Megjegyzés:",{"$f":"IF(Munkalap!A19>0,VLOOKUP(Munkalap!A19,Munkalap!$A$13:$P$44,16,FALSE),\" \")","v":0}]
[{"$f":"IF(Munkalap!$J$6>0,Munkalap!$J$6,\"\")","v":""},null,{"$f":"IF(Munkalap!$N$3>0,Munkalap!$N$3,\"\")","v":""}]
["Martin Metals Kft.",null,{"$f":"IF(Munkalap!A20>0,VLOOKUP(Munkalap!A20,Munkalap!$A$13:P44,15,FALSE),\" \")","v":""}]
["Bejövő helykód",{"$f":"IF(Munkalap!A20>0,VLOOKUP(Munkalap!A20,Munkalap!A20:N61,13,FALSE),\" \")","v":0},{"$f":"IF(Munkalap!A20>0,VLOOKUP(Munkalap!A20,Munkalap!$A$13:$P$44,14,FALSE),\" \")","v":0}]
["Új helykód",null,{"$f":"IF(Munkalap!A20>0,VLOOKUP(Munkalap!A20,Munkalap!A20:N61,10,FALSE),\" \")","v":0}]
["Új helykód 2",null,{"$f":"IF(Munkalap!A20>0,VLOOKUP(Munkalap!A20,Munkalap!A20:N61,11,FALSE),\" \")","v":0}]
[{"$f":"IF(Munkalap!A20>0,VLOOKUP(Munkalap!A20,Munkalap!A20:N61,5,FALSE),\" \")","v":0},null,{"$f":"IF(Munkalap!A20>0,VLOOKUP(Munkalap!A20,Munkalap!A20:N61,12,FALSE),\" \")","v":""}]
["Megjegyzés:",{"$f":"IF(Munkalap!A20>0,VLOOKUP(Munkalap!A20,Munkalap!$A$13:$P$44,16,FALSE),\" \")","v":0}]
[{"$f":"IF(Munkalap!$J$6>0,Munkalap!$J$6,\"\")","v":""},null,{"$f":"IF(Munkalap!$N$3>0,Munkalap!$N$3,\"\")","v":""}]
["Martin Metals Kft.",null,{"$f":"IF(Munkalap!A21>0,VLOOKUP(Munkalap!A21,Munkalap!$A$13:P44,15,FALSE),\" \")","v":""}]
["Bejövő helykód",{"$f":"IF(Munkalap!A21>0,VLOOKUP(Munkalap!A21,Munkalap!A21:N61,13,FALSE),\" \")","v":0},{"$f":"IF(Munkalap!A21>0,VLOOKUP(Munkalap!A21,Munkalap!$A$13:$P$44,14,FALSE),\" \")","v":0}]
["Új helykód",null,{"$f":"IF(Munkalap!A21>0,VLOOKUP(Munkalap!A21,Munkalap!A21:N61,10,FALSE),\" \")","v":0}]
["Új helykód 2",null,{"$f":"IF(Munkalap!A21>0,VLOOKUP(Munkalap!A21,Munkalap!A21:N61,11,FALSE),\" \")","v":0}]
[{"$f":"IF(Munkalap!A21>0,VLOOKUP(Munkalap!A21,Munkalap!A21:N61,5,FALSE),\" \")","v":0},null,{"$f":"IF(Munkalap!A21>0,VLOOKUP(Munkalap!A21,Munkalap!A21:N61,12,FALSE),\" \")","v":""}]
["Megjegyzés:",{"$f":"IF(Munkalap!A21>0,VLOOKUP(Munkalap!A21,Munkalap!$A$13:$P$44,16,FALSE),\" \")","v":0}]
[{"$f":"IF(Munkalap!$J$6>0,Munkalap!$J$6,\"\")","v":""},null,{"$f":"IF(Munkalap!$N$3>0,Munkalap!$N$3,\"\")","v":""}]
["Martin Metals Kft.",null,{"$f":"IF(Munkalap!A22>0,VLOOKUP(Munkalap!A22,Munkalap!$A$13:P44,15,FALSE),\" \")","v":""}]
["Bejövő helykód",{"$f":"IF(Munkalap!A22>0,VLOOKUP(Munkalap!A22,Munkalap!A22:N61,13,FALSE),\" \")","v":0},{"$f":"IF(Munkalap!A22>0,VLOOKUP(Munkalap!A22,Munkalap!$A$13:$P$44,14,FALSE),\" \")","v":0}]
["Új helykód",null,{"$f":"IF(Munkalap!A22>0,VLOOKUP(Munkalap!A22,Munkalap!A22:N61,10,FALSE),\" \")","v":0}]
["Új helykód 2",null,{"$f":"IF(Munkalap!A22>0,VLOOKUP(Munkalap!A22,Munkalap!A22:N61,11,FALSE),\" \")","v":0}]
[{"$f":"IF(Munkalap!A22>0,VLOOKUP(Munkalap!A22,Munkalap!A22:N61,5,FALSE),\" \")","v":0},null,{"$f":"IF(Munkalap!A22>0,VLOOKUP(Munkalap!A22,Munkalap!A22:N61,12,FALSE),\" \")","v":""}]
["Megjegyzés:",{"$f":"IF(Munkalap!A22>0,VLOOKUP(Munkalap!A22,Munkalap!$A$13:$P$44,16,FALSE),\" \")","v":0}]
[{"$f":"IF(Munkalap!$J$6>0,Munkalap!$J$6,\"\")","v":""},null,{"$f":"IF(Munkalap!$N$3>0,Munkalap!$N$3,\"\")","v":""}]
["Martin Metals Kft.",null,{"$f":"IF(Munkalap!A23>0,VLOOKUP(Munkalap!A23,Munkalap!$A$13:P44,15,FALSE),\" \")","v":""}]
["Bejövő helykód",{"$f":"IF(Munkalap!A23>0,VLOOKUP(Munkalap!A23,Munkalap!A23:N61,13,FALSE),\" \")","v":0},{"$f":"IF(Munkalap!A23>0,VLOOKUP(Munkalap!A23,Munkalap!$A$13:$P$44,14,FALSE),\" \")","v":0}]
["Új helykód",null,{"$f":"IF(Munkalap!A23>0,VLOOKUP(Munkalap!A23,Munkalap!A23:N61,10,FALSE),\" \")","v":0}]
["Új helykód 2",null,{"$f":"IF(Munkalap!A23>0,VLOOKUP(Munkalap!A23,Munkalap!A23:N61,11,FALSE),\" \")","v":0}]
[{"$f":"IF(Munkalap!A23>0,VLOOKUP(Munkalap!A23,Munkalap!A23:N61,5,FALSE),\" \")","v":0},null,{"$f":"IF(Munkalap!A23>0,VLOOKUP(Munkalap!A23,Munkalap!A23:N61,12,FALSE),\" \")","v":""}]
["Megjegyzés:",{"$f":"IF(Munkalap!A23>0,VLOOKUP(Munkalap!A23,Munkalap!$A$13:$P$44,16,FALSE),\" \")","v":0}]
[{"$f":"IF(Munkalap!$J$6>0,Munkalap!$J$6,\"\")","v":""},null,{"$f":"IF(Munkalap!$N$3>0,Munkalap!$N$3,\"\")","v":""}]
["Martin Metals Kft.",null,{"$f":"IF(Munkalap!A24>0,VLOOKUP(Munkalap!A24,Munkalap!$A$13:P44,15,FALSE),\" \")","v":""}]
["Bejövő helykód",{"$f":"IF(Munkalap!A24>0,VLOOKUP(Munkalap!A24,Munkalap!A24:N61,13,FALSE),\" \")","v":0},{"$f":"IF(Munkalap!A24>0,VLOOKUP(Munkalap!A24,Munkalap!$A$13:$P$44,14,FALSE),\" \")","v":0}]
["Új helykód",null,{"$f":"IF(Munkalap!A24>0,VLOOKUP(Munkalap!A24,Munkalap!A24:N61,10,FALSE),\" \")","v":0}]
["Új helykód 2",null,{"$f":"IF(Munkalap!A24>0,VLOOKUP(Munkalap!A24,Munkalap!A24:N61,11,FALSE),\" \")","v":0}]
[{"$f":"IF(Munkalap!A24>0,VLOOKUP(Munkalap!A24,Munkalap!A24:N61,5,FALSE),\" \")","v":0},null,{"$f":"IF(Munkalap!A24>0,VLOOKUP(Munkalap!A24,Munkalap!A24:N61,12,FALSE),\" \")","v":""}]
["Megjegyzés:",{"$f":"IF(Munkalap!A24>0,VLOOKUP(Munkalap!A24,Munkalap!$A$13:$P$44,16,FALSE),\" \")","v":0}]
[{"$f":"IF(Munkalap!$J$6>0,Munkalap!$J$6,\"\")","v":""},null,{"$f":"IF(Munkalap!$N$3>0,Munkalap!$N$3,\"\")","v":""}]
["Martin Metals Kft.",null,{"$f":"IF(Munkalap!A25>0,VLOOKUP(Munkalap!A25,Munkalap!$A$13:P44,15,FALSE),\" \")","v":""}]
["Bejövő helykód",{"$f":"IF(Munkalap!A25>0,VLOOKUP(Munkalap!A25,Munkalap!A25:N61,13,FALSE),\" \")","v":0},{"$f":"IF(Munkalap!A25>0,VLOOKUP(Munkalap!A25,Munkalap!$A$13:$P$44,14,FALSE),\" \")","v":0}]
["Új helykód",null,{"$f":"IF(Munkalap!A25>0,VLOOKUP(Munkalap!A25,Munkalap!A25:N61,10,FALSE),\" \")","v":0}]
["Új helykód 2",null,{"$f":"IF(Munkalap!A25>0,VLOOKUP(Munkalap!A25,Munkalap!A25:N61,11,FALSE),\" \")","v":0}]
[{"$f":"IF(Munkalap!A25>0,VLOOKUP(Munkalap!A25,Munkalap!A25:N61,5,FALSE),\" \")","v":0},null,{"$f":"IF(Munkalap!A25>0,VLOOKUP(Munkalap!A25,Munkalap!A25:N61,12,FALSE),\" \")","v":""}]
["Megjegyzés:",{"$f":"IF(Munkalap!A25>0,VLOOKUP(Munkalap!A25,Munkalap!$A$13:$P$44,16,FALSE),\" \")","v":0}]
[{"$f":"IF(Munkalap!$J$6>0,Munkalap!$J$6,\"\")","v":""},null,{"$f":"IF(Munkalap!$N$3>0,Munkalap!$N$3,\"\")","v":""}]
["Martin Metals Kft.",null,{"$f":"IF(Munkalap!A26>0,VLOOKUP(Munkalap!A26,Munkalap!$A$13:P44,15,FALSE),\" \")","v":""}]
["Bejövő helykód",{"$f":"IF(Munkalap!A26>0,VLOOKUP(Munkalap!A26,Munkalap!A26:N66,13,FALSE),\" \")","v":0},{"$f":"IF(Munkalap!A26>0,VLOOKUP(Munkalap!A26,Munkalap!$A$13:$P$44,14,FALSE),\" \")","v":0}]
["Új helykód",null,{"$f":"IF(Munkalap!A26>0,VLOOKUP(Munkalap!A26,Munkalap!A26:N66,10,FALSE),\" \")","v":0}]
["Új helykód 2",null,{"$f":"IF(Munkalap!A26>0,VLOOKUP(Munkalap!A26,Munkalap!A26:N66,11,FALSE),\" \")","v":0}]
[{"$f":"IF(Munkalap!A26>0,VLOOKUP(Munkalap!A26,Munkalap!A26:N66,5,FALSE),\" \")","v":0},null,{"$f":"IF(Munkalap!A26>0,VLOOKUP(Munkalap!A26,Munkalap!A26:N66,12,FALSE),\" \")","v":""}]
["Megjegyzés:",{"$f":"IF(Munkalap!A26>0,VLOOKUP(Munkalap!A26,Munkalap!$A$13:$P$44,16,FALSE),\" \")","v":0}]
[{"$f":"IF(Munkalap!$J$6>0,Munkalap!$J$6,\"\")","v":""},null,{"$f":"IF(Munkalap!$N$3>0,Munkalap!$N$3,\"\")","v":""}]
["Martin Metals Kft.",null,{"$f":"IF(Munkalap!A27>0,VLOOKUP(Munkalap!A27,Munkalap!$A$13:P44,15,FALSE),\" \")","v":""}]
["Bejövő helykód",{"$f":"IF(Munkalap!A27>0,VLOOKUP(Munkalap!A27,Munkalap!A27:N73,13,FALSE),\" \")","v":0},{"$f":"IF(Munkalap!A27>0,VLOOKUP(Munkalap!A27,Munkalap!$A$13:$P$44,14,FALSE),\" \")","v":0}]
["Új helykód",null,{"$f":"IF(Munkalap!A27>0,VLOOKUP(Munkalap!A27,Munkalap!A27:N73,10,FALSE),\" \")","v":0}]
["Új helykód 2",null,{"$f":"IF(Munkalap!A27>0,VLOOKUP(Munkalap!A27,Munkalap!A27:N73,11,FALSE),\" \")","v":0}]
[{"$f":"IF(Munkalap!A27>0,VLOOKUP(Munkalap!A27,Munkalap!A27:N73,5,FALSE),\" \")","v":0},null,{"$f":"IF(Munkalap!A27>0,VLOOKUP(Munkalap!A27,Munkalap!A27:N73,12,FALSE),\" \")","v":""}]
["Megjegyzés:",{"$f":"IF(Munkalap!A27>0,VLOOKUP(Munkalap!A27,Munkalap!$A$13:$P$44,16,FALSE),\" \")","v":0}]
[{"$f":"IF(Munkalap!$J$6>0,Munkalap!$J$6,\"\")","v":""},null,{"$f":"IF(Munkalap!$N$3>0,Munkalap!$N$3,\"\")","v":""}]
["Martin Metals Kft.",null,{"$f":"IF(Munkalap!A28>0,VLOOKUP(Munkalap!A28,Munkalap!$A$13:P44,15,FALSE),\" \")","v":""}]
["Bejövő helykód",{"$f":"IF(Munkalap!A28>0,VLOOKUP(Munkalap!A28,Munkalap!A28:N80,13,FALSE),\" \")","v":0},{"$f":"IF(Munkalap!A28>0,VLOOKUP(Munkalap!A28,Munkalap!$A$13:$P$44,14,FALSE),\" \")","v":0}]
["Új helykód",null,{"$f":"IF(Munkalap!A28>0,VLOOKUP(Munkalap!A28,Munkalap!A28:N80,10,FALSE),\" \")","v":0}]
["Új helykód 2",null,{"$f":"IF(Munkalap!A28>0,VLOOKUP(Munkalap!A28,Munkalap!A28:N80,11,FALSE),\" \")","v":0}]
[{"$f":"IF(Munkalap!A28>0,VLOOKUP(Munkalap!A28,Munkalap!A28:N80,5,FALSE),\" \")","v":0},null,{"$f":"IF(Munkalap!A28>0,VLOOKUP(Munkalap!A28,Munkalap!A28:N80,12,FALSE),\" \")","v":""}]
["Megjegyzés:",{"$f":"IF(Munkalap!A28>0,VLOOKUP(Munkalap!A28,Munkalap!$A$13:$P$44,16,FALSE),\" \")","v":0}]
[{"$f":"IF(Munkalap!$J$6>0,Munkalap!$J$6,\"\")","v":""},null,{"$f":"IF(Munkalap!$N$3>0,Munkalap!$N$3,\"\")","v":""}]
["Martin Metals Kft.",null,{"$f":"IF(Munkalap!A29>0,VLOOKUP(Munkalap!A29,Munkalap!$A$13:P44,15,FALSE),\" \")","v":""}]
["Bejövő helykód",{"$f":"IF(Munkalap!A29>0,VLOOKUP(Munkalap!A29,Munkalap!A29:N87,13,FALSE),\" \")","v":0},{"$f":"IF(Munkalap!A29>0,VLOOKUP(Munkalap!A29,Munkalap!$A$13:$P$44,14,FALSE),\" \")","v":0}]
["Új helykód",null,{"$f":"IF(Munkalap!A29>0,VLOOKUP(Munkalap!A29,Munkalap!A29:N87,10,FALSE),\" \")","v":0}]
["Új helykód 2",null,{"$f":"IF(Munkalap!A29>0,VLOOKUP(Munkalap!A29,Munkalap!A29:N87,11,FALSE),\" \")","v":0}]
[{"$f":"IF(Munkalap!A29>0,VLOOKUP(Munkalap!A29,Munkalap!A29:N87,5,FALSE),\" \")","v":0},null,{"$f":"IF(Munkalap!A29>0,VLOOKUP(Munkalap!A29,Munkalap!A29:N87,12,FALSE),\" \")","v":""}]
["Megjegyzés:",{"$f":"IF(Munkalap!A29>0,VLOOKUP(Munkalap!A29,Munkalap!$A$13:$P$44,16,FALSE),\" \")","v":0}]
[{"$f":"IF(Munkalap!$J$6>0,Munkalap!$J$6,\"\")","v":""},null,{"$f":"IF(Munkalap!$N$3>0,Munkalap!$N$3,\"\")","v":""}]
["Martin Metals Kft.",null,{"$f":"IF(Munkalap!A30>0,VLOOKUP(Munkalap!A30,Munkalap!$A$13:P44,15,FALSE),\" \")","v":""}]
["Bejövő helykód",{"$f":"IF(Munkalap!A30>0,VLOOKUP(Munkalap!A30,Munkalap!A30:N94,13,FALSE),\" \")","v":0},{"$f":"IF(Munkalap!A30>0,VLOOKUP(Munkalap!A30,Munkalap!$A$13:$P$44,14,FALSE),\" \")","v":0}]
["Új helykód",null,{"$f":"IF(Munkalap!A30>0,VLOOKUP(Munkalap!A30,Munkalap!A30:N94,10,FALSE),\" \")","v":0}]
["Új helykód 2",null,{"$f":"IF(Munkalap!A30>0,VLOOKUP(Munkalap!A30,Munkalap!A30:N94,11,FALSE),\" \")","v":0}]
[{"$f":"IF(Munkalap!A30>0,VLOOKUP(Munkalap!A30,Munkalap!A30:N94,5,FALSE),\" \")","v":0},null,{"$f":"IF(Munkalap!A30>0,VLOOKUP(Munkalap!A30,Munkalap!A30:N94,12,FALSE),\" \")","v":""}]
["Megjegyzés:",{"$f":"IF(Munkalap!A30>0,VLOOKUP(Munkalap!A30,Munkalap!$A$13:$P$44,16,FALSE),\" \")","v":0}]
[{"$f":"IF(Munkalap!$J$6>0,Munkalap!$J$6,\"\")","v":""},null,{"$f":"IF(Munkalap!$N$3>0,Munkalap!$N$3,\"\")","v":""}]
["Martin Metals Kft.",null,{"$f":"IF(Munkalap!A31>0,VLOOKUP(Munkalap!A31,Munkalap!$A$13:P44,15,FALSE),\" \")","v":""}]
["Bejövő helykód",{"$f":"IF(Munkalap!A31>0,VLOOKUP(Munkalap!A31,Munkalap!A31:N101,13,FALSE),\" \")","v":0},{"$f":"IF(Munkalap!A31>0,VLOOKUP(Munkalap!A31,Munkalap!$A$13:$P$44,14,FALSE),\" \")","v":0}]
["Új helykód",null,{"$f":"IF(Munkalap!A31>0,VLOOKUP(Munkalap!A31,Munkalap!A31:N101,10,FALSE),\" \")","v":0}]
["Új helykód 2",null,{"$f":"IF(Munkalap!A31>0,VLOOKUP(Munkalap!A31,Munkalap!A31:N101,11,FALSE),\" \")","v":0}]
[{"$f":"IF(Munkalap!A31>0,VLOOKUP(Munkalap!A31,Munkalap!A31:N101,5,FALSE),\" \")","v":0},null,{"$f":"IF(Munkalap!A31>0,VLOOKUP(Munkalap!A31,Munkalap!A31:N101,12,FALSE),\" \")","v":""}]
["Megjegyzés:",{"$f":"IF(Munkalap!A31>0,VLOOKUP(Munkalap!A31,Munkalap!$A$13:$P$44,16,FALSE),\" \")","v":0}]
[{"$f":"IF(Munkalap!$J$6>0,Munkalap!$J$6,\"\")","v":""},null,{"$f":"IF(Munkalap!$N$3>0,Munkalap!$N$3,\"\")","v":""}]
["Martin Metals Kft.",null,{"$f":"IF(Munkalap!A32>0,VLOOKUP(Munkalap!A32,Munkalap!$A$13:P44,15,FALSE),\" \")","v":""}]
["Bejövő helykód",{"$f":"IF(Munkalap!A32>0,VLOOKUP(Munkalap!A32,Munkalap!A32:N108,13,FALSE),\" \")","v":0},{"$f":"IF(Munkalap!A32>0,VLOOKUP(Munkalap!A32,Munkalap!$A$13:$P$44,14,FALSE),\" \")","v":0}]
["Új helykód",null,{"$f":"IF(Munkalap!A32>0,VLOOKUP(Munkalap!A32,Munkalap!A32:N108,10,FALSE),\" \")","v":0}]
["Új helykód 2",null,{"$f":"IF(Munkalap!A32>0,VLOOKUP(Munkalap!A32,Munkalap!A32:N108,11,FALSE),\" \")","v":0}]
[{"$f":"IF(Munkalap!A32>0,VLOOKUP(Munkalap!A32,Munkalap!A32:N108,5,FALSE),\" \")","v":0},null,{"$f":"IF(Munkalap!A32>0,VLOOKUP(Munkalap!A32,Munkalap!A32:N108,12,FALSE),\" \")","v":""}]
["Megjegyzés:",{"$f":"IF(Munkalap!A32>0,VLOOKUP(Munkalap!A32,Munkalap!$A$13:$P$44,16,FALSE),\" \")","v":0}]
[{"$f":"IF(Munkalap!$J$6>0,Munkalap!$J$6,\"\")","v":""},null,{"$f":"IF(Munkalap!$N$3>0,Munkalap!$N$3,\"\")","v":""}]
["Martin Metals Kft.",null,{"$f":"IF(Munkalap!A33>0,VLOOKUP(Munkalap!A33,Munkalap!$A$13:P44,15,FALSE),\" \")","v":""}]
["Bejövő helykód",{"$f":"IF(Munkalap!A33>0,VLOOKUP(Munkalap!A33,Munkalap!A33:N115,13,FALSE),\" \")","v":0},{"$f":"IF(Munkalap!A33>0,VLOOKUP(Munkalap!A33,Munkalap!$A$13:$P$44,14,FALSE),\" \")","v":0}]
["Új helykód",null,{"$f":"IF(Munkalap!A33>0,VLOOKUP(Munkalap!A33,Munkalap!A33:N115,10,FALSE),\" \")","v":0}]
["Új helykód 2",null,{"$f":"IF(Munkalap!A33>0,VLOOKUP(Munkalap!A33,Munkalap!A33:N115,11,FALSE),\" \")","v":0}]
[{"$f":"IF(Munkalap!A33>0,VLOOKUP(Munkalap!A33,Munkalap!A33:N115,5,FALSE),\" \")","v":0},null,{"$f":"IF(Munkalap!A33>0,VLOOKUP(Munkalap!A33,Munkalap!A33:N115,12,FALSE),\" \")","v":""}]
["Megjegyzés:",{"$f":"IF(Munkalap!A33>0,VLOOKUP(Munkalap!A33,Munkalap!$A$13:$P$44,16,FALSE),\" \")","v":0}]
[{"$f":"IF(Munkalap!$J$6>0,Munkalap!$J$6,\"\")","v":""},null,{"$f":"IF(Munkalap!$N$3>0,Munkalap!$N$3,\"\")","v":""}]
["Martin Metals Kft.",null,{"$f":"IF(Munkalap!A34>0,VLOOKUP(Munkalap!A34,Munkalap!$A$13:P44,15,FALSE),\" \")","v":""}]
["Bejövő helykód",{"$f":"IF(Munkalap!A34>0,VLOOKUP(Munkalap!A34,Munkalap!A34:N122,13,FALSE),\" \")","v":0},{"$f":"IF(Munkalap!A34>0,VLOOKUP(Munkalap!A34,Munkalap!$A$13:$P$44,14,FALSE),\" \")","v":0}]
["Új helykód",null,{"$f":"IF(Munkalap!A34>0,VLOOKUP(Munkalap!A34,Munkalap!A34:N122,10,FALSE),\" \")","v":0}]
["Új helykód 2",null,{"$f":"IF(Munkalap!A34>0,VLOOKUP(Munkalap!A34,Munkalap!A34:N122,11,FALSE),\" \")","v":0}]
[{"$f":"IF(Munkalap!A34>0,VLOOKUP(Munkalap!A34,Munkalap!A34:N122,5,FALSE),\" \")","v":0},null,{"$f":"IF(Munkalap!A34>0,VLOOKUP(Munkalap!A34,Munkalap!A34:N122,12,FALSE),\" \")","v":""}]
["Megjegyzés:",{"$f":"IF(Munkalap!A34>0,VLOOKUP(Munkalap!A34,Munkalap!$A$13:$P$44,16,FALSE),\" \")","v":0}]
[{"$f":"IF(Munkalap!$J$6>0,Munkalap!$J$6,\"\")","v":""},null,{"$f":"IF(Munkalap!$N$3>0,Munkalap!$N$3,\"\")","v":""}]
["Martin Metals Kft.",null,{"$f":"IF(Munkalap!A35>0,VLOOKUP(Munkalap!A35,Munkalap!$A$13:P44,15,FALSE),\" \")","v":""}]
["Bejövő helykód",{"$f":"IF(Munkalap!A35>0,VLOOKUP(Munkalap!A35,Munkalap!A35:N129,13,FALSE),\" \")","v":0},{"$f":"IF(Munkalap!A35>0,VLOOKUP(Munkalap!A35,Munkalap!$A$13:$P$44,14,FALSE),\" \")","v":0}]
["Új helykód",null,{"$f":"IF(Munkalap!A35>0,VLOOKUP(Munkalap!A35,Munkalap!A35:N129,10,FALSE),\" \")","v":0}]
["Új helykód 2",null,{"$f":"IF(Munkalap!A35>0,VLOOKUP(Munkalap!A35,Munkalap!A35:N129,11,FALSE),\" \")","v":0}]
[{"$f":"IF(Munkalap!A35>0,VLOOKUP(Munkalap!A35,Munkalap!A35:N129,5,FALSE),\" \")","v":0},null,{"$f":"IF(Munkalap!A35>0,VLOOKUP(Munkalap!A35,Munkalap!A35:N129,12,FALSE),\" \")","v":""}]
["Megjegyzés:",{"$f":"IF(Munkalap!A35>0,VLOOKUP(Munkalap!A35,Munkalap!$A$13:$P$44,16,FALSE),\" \")","v":0}]
[{"$f":"IF(Munkalap!$J$6>0,Munkalap!$J$6,\"\")","v":""},null,{"$f":"IF(Munkalap!$N$3>0,Munkalap!$N$3,\"\")","v":""}]
["Martin Metals Kft.",null,{"$f":"IF(Munkalap!A36>0,VLOOKUP(Munkalap!A36,Munkalap!$A$13:P44,15,FALSE),\" \")","v":""}]
["Bejövő helykód",{"$f":"IF(Munkalap!A36>0,VLOOKUP(Munkalap!A36,Munkalap!A36:N136,13,FALSE),\" \")","v":0},{"$f":"IF(Munkalap!A36>0,VLOOKUP(Munkalap!A36,Munkalap!$A$13:$P$44,14,FALSE),\" \")","v":0}]
["Új helykód",null,{"$f":"IF(Munkalap!A36>0,VLOOKUP(Munkalap!A36,Munkalap!A36:N136,10,FALSE),\" \")","v":0}]
["Új helykód 2",null,{"$f":"IF(Munkalap!A36>0,VLOOKUP(Munkalap!A36,Munkalap!A36:N136,11,FALSE),\" \")","v":0}]
[{"$f":"IF(Munkalap!A36>0,VLOOKUP(Munkalap!A36,Munkalap!A36:N136,5,FALSE),\" \")","v":0},null,{"$f":"IF(Munkalap!A36>0,VLOOKUP(Munkalap!A36,Munkalap!A36:N136,12,FALSE),\" \")","v":""}]
["Megjegyzés:",{"$f":"IF(Munkalap!A36>0,VLOOKUP(Munkalap!A36,Munkalap!$A$13:$P$44,16,FALSE),\" \")","v":0}]
[{"$f":"IF(Munkalap!$J$6>0,Munkalap!$J$6,\"\")","v":""},null,{"$f":"IF(Munkalap!$N$3>0,Munkalap!$N$3,\"\")","v":""}]
["Martin Metals Kft.",null,{"$f":"IF(Munkalap!A37>0,VLOOKUP(Munkalap!A37,Munkalap!$A$13:P44,15,FALSE),\" \")","v":""}]
["Bejövő helykód",{"$f":"IF(Munkalap!A37>0,VLOOKUP(Munkalap!A37,Munkalap!A37:N143,13,FALSE),\" \")","v":0},{"$f":"IF(Munkalap!A37>0,VLOOKUP(Munkalap!A37,Munkalap!$A$13:$P$44,14,FALSE),\" \")","v":0}]
["Új helykód",null,{"$f":"IF(Munkalap!A37>0,VLOOKUP(Munkalap!A37,Munkalap!A37:N143,10,FALSE),\" \")","v":0}]
["Új helykód 2",null,{"$f":"IF(Munkalap!A37>0,VLOOKUP(Munkalap!A37,Munkalap!A37:N143,11,FALSE),\" \")","v":0}]
[{"$f":"IF(Munkalap!A37>0,VLOOKUP(Munkalap!A37,Munkalap!A37:N143,5,FALSE),\" \")","v":0},null,{"$f":"IF(Munkalap!A37>0,VLOOKUP(Munkalap!A37,Munkalap!A37:N143,12,FALSE),\" \")","v":""}]
["Megjegyzés:",{"$f":"IF(Munkalap!A37>0,VLOOKUP(Munkalap!A37,Munkalap!$A$13:$P$44,16,FALSE),\" \")","v":0}]
[{"$f":"IF(Munkalap!$J$6>0,Munkalap!$J$6,\"\")","v":""},null,{"$f":"IF(Munkalap!$N$3>0,Munkalap!$N$3,\"\")","v":""}]
["Martin Metals Kft.",null,{"$f":"IF(Munkalap!A38>0,VLOOKUP(Munkalap!A38,Munkalap!$A$13:P44,15,FALSE),\" \")","v":""}]
["Bejövő helykód",{"$f":"IF(Munkalap!A38>0,VLOOKUP(Munkalap!A38,Munkalap!A38:N150,13,FALSE),\" \")","v":0},{"$f":"IF(Munkalap!A38>0,VLOOKUP(Munkalap!A38,Munkalap!$A$13:$P$44,14,FALSE),\" \")","v":0}]
["Új helykód",null,{"$f":"IF(Munkalap!A38>0,VLOOKUP(Munkalap!A38,Munkalap!A38:N150,10,FALSE),\" \")","v":0}]
["Új helykód 2",null,{"$f":"IF(Munkalap!A38>0,VLOOKUP(Munkalap!A38,Munkalap!A38:N150,11,FALSE),\" \")","v":0}]
[{"$f":"IF(Munkalap!A38>0,VLOOKUP(Munkalap!A38,Munkalap!A38:N150,5,FALSE),\" \")","v":0},null,{"$f":"IF(Munkalap!A38>0,VLOOKUP(Munkalap!A38,Munkalap!A38:N150,12,FALSE),\" \")","v":""}]
["Megjegyzés:",{"$f":"IF(Munkalap!A38>0,VLOOKUP(Munkalap!A38,Munkalap!$A$13:$P$44,16,FALSE),\" \")","v":0}]
[{"$f":"IF(Munkalap!$J$6>0,Munkalap!$J$6,\"\")","v":""},null,{"$f":"IF(Munkalap!$N$3>0,Munkalap!$N$3,\"\")","v":""}]
["Martin Metals Kft.",null,{"$f":"IF(Munkalap!A39>0,VLOOKUP(Munkalap!A39,Munkalap!$A$13:P44,15,FALSE),\" \")","v":""}]
["Bejövő helykód",{"$f":"IF(Munkalap!A39>0,VLOOKUP(Munkalap!A39,Munkalap!A39:N157,13,FALSE),\" \")","v":0},{"$f":"IF(Munkalap!A39>0,VLOOKUP(Munkalap!A39,Munkalap!$A$13:$P$44,14,FALSE),\" \")","v":0}]
["Új helykód",null,{"$f":"IF(Munkalap!A39>0,VLOOKUP(Munkalap!A39,Munkalap!A39:N157,10,FALSE),\" \")","v":0}]
["Új helykód 2",null,{"$f":"IF(Munkalap!A39>0,VLOOKUP(Munkalap!A39,Munkalap!A39:N157,11,FALSE),\" \")","v":0}]
[{"$f":"IF(Munkalap!A39>0,VLOOKUP(Munkalap!A39,Munkalap!A39:N157,5,FALSE),\" \")","v":0},null,{"$f":"IF(Munkalap!A39>0,VLOOKUP(Munkalap!A39,Munkalap!A39:N157,12,FALSE),\" \")","v":""}]
["Megjegyzés:",{"$f":"IF(Munkalap!A39>0,VLOOKUP(Munkalap!A39,Munkalap!$A$13:$P$44,16,FALSE),\" \")","v":0}]
[{"$f":"IF(Munkalap!$J$6>0,Munkalap!$J$6,\"\")","v":""},null,{"$f":"IF(Munkalap!$N$3>0,Munkalap!$N$3,\"\")","v":""}]
["Martin Metals Kft.",null,{"$f":"IF(Munkalap!A40>0,VLOOKUP(Munkalap!A40,Munkalap!$A$13:P44,15,FALSE),\" \")","v":""}]
["Bejövő helykód",{"$f":"IF(Munkalap!A40>0,VLOOKUP(Munkalap!A40,Munkalap!A40:N164,13,FALSE),\" \")","v":0},{"$f":"IF(Munkalap!A40>0,VLOOKUP(Munkalap!A40,Munkalap!$A$13:$P$44,14,FALSE),\" \")","v":0}]
["Új helykód",null,{"$f":"IF(Munkalap!A40>0,VLOOKUP(Munkalap!A40,Munkalap!A40:N164,10,FALSE),\" \")","v":0}]
["Új helykód 2",null,{"$f":"IF(Munkalap!A40>0,VLOOKUP(Munkalap!A40,Munkalap!A40:N164,11,FALSE),\" \")","v":0}]
[{"$f":"IF(Munkalap!A40>0,VLOOKUP(Munkalap!A40,Munkalap!A40:N164,5,FALSE),\" \")","v":0},null,{"$f":"IF(Munkalap!A40>0,VLOOKUP(Munkalap!A40,Munkalap!A40:N164,12,FALSE),\" \")","v":""}]
["Megjegyzés:",{"$f":"IF(Munkalap!A40>0,VLOOKUP(Munkalap!A40,Munkalap!$A$13:$P$44,16,FALSE),\" \")","v":0}]
[{"$f":"IF(Munkalap!$J$6>0,Munkalap!$J$6,\"\")","v":""},null,{"$f":"IF(Munkalap!$N$3>0,Munkalap!$N$3,\"\")","v":""}]
["Martin Metals Kft.",null,{"$f":"IF(Munkalap!A41>0,VLOOKUP(Munkalap!A41,Munkalap!$A$13:P44,15,FALSE),\" \")","v":""}]
["Bejövő helykód",{"$f":"IF(Munkalap!A41>0,VLOOKUP(Munkalap!A41,Munkalap!A41:N171,13,FALSE),\" \")","v":0},{"$f":"IF(Munkalap!A41>0,VLOOKUP(Munkalap!A41,Munkalap!$A$13:$P$44,14,FALSE),\" \")","v":0}]
["Új helykód",null,{"$f":"IF(Munkalap!A41>0,VLOOKUP(Munkalap!A41,Munkalap!A41:N171,10,FALSE),\" \")","v":0}]
["Új helykód 2",null,{"$f":"IF(Munkalap!A41>0,VLOOKUP(Munkalap!A41,Munkalap!A41:N171,11,FALSE),\" \")","v":0}]
[{"$f":"IF(Munkalap!A41>0,VLOOKUP(Munkalap!A41,Munkalap!A41:N171,5,FALSE),\" \")","v":0},null,{"$f":"IF(Munkalap!A41>0,VLOOKUP(Munkalap!A41,Munkalap!A41:N171,12,FALSE),\" \")","v":""}]
["Megjegyzés:",{"$f":"IF(Munkalap!A41>0,VLOOKUP(Munkalap!A41,Munkalap!$A$13:$P$44,16,FALSE),\" \")","v":0}]
[{"$f":"IF(Munkalap!$J$6>0,Munkalap!$J$6,\"\")","v":""},null,{"$f":"IF(Munkalap!$N$3>0,Munkalap!$N$3,\"\")","v":""}]
["Martin Metals Kft.",null,{"$f":"IF(Munkalap!A42>0,VLOOKUP(Munkalap!A42,Munkalap!$A$13:P44,15,FALSE),\" \")","v":""}]
["Bejövő helykód",{"$f":"IF(Munkalap!A42>0,VLOOKUP(Munkalap!A42,Munkalap!A42:N178,13,FALSE),\" \")","v":0},{"$f":"IF(Munkalap!A42>0,VLOOKUP(Munkalap!A42,Munkalap!$A$13:$P$44,14,FALSE),\" \")","v":0}]
["Új helykód",null,{"$f":"IF(Munkalap!A42>0,VLOOKUP(Munkalap!A42,Munkalap!A42:N178,10,FALSE),\" \")","v":0}]
["Új helykód 2",null,{"$f":"IF(Munkalap!A42>0,VLOOKUP(Munkalap!A42,Munkalap!A42:N178,11,FALSE),\" \")","v":0}]
[{"$f":"IF(Munkalap!A42>0,VLOOKUP(Munkalap!A42,Munkalap!A42:N178,5,FALSE),\" \")","v":0},null,{"$f":"IF(Munkalap!A42>0,VLOOKUP(Munkalap!A42,Munkalap!A42:N178,12,FALSE),\" \")","v":""}]
["Megjegyzés:",{"$f":"IF(Munkalap!A42>0,VLOOKUP(Munkalap!A42,Munkalap!$A$13:$P$44,16,FALSE),\" \")","v":0}]
[{"$f":"IF(Munkalap!$J$6>0,Munkalap!$J$6,\"\")","v":""},null,{"$f":"IF(Munkalap!$N$3>0,Munkalap!$N$3,\"\")","v":""}]
["Martin Metals Kft.",null,{"$f":"IF(Munkalap!A43>0,VLOOKUP(Munkalap!A43,Munkalap!$A$13:P44,15,FALSE),\" \")","v":""}]
["Bejövő helykód",{"$f":"IF(Munkalap!A43>0,VLOOKUP(Munkalap!A43,Munkalap!A43:N185,13,FALSE),\" \")","v":0},{"$f":"IF(Munkalap!A43>0,VLOOKUP(Munkalap!A43,Munkalap!$A$13:$P$44,14,FALSE),\" \")","v":0}]
["Új helykód",null,{"$f":"IF(Munkalap!A43>0,VLOOKUP(Munkalap!A43,Munkalap!A43:N185,10,FALSE),\" \")","v":0}]
["Új helykód 2",null,{"$f":"IF(Munkalap!A43>0,VLOOKUP(Munkalap!A43,Munkalap!A43:N185,11,FALSE),\" \")","v":0}]
[{"$f":"IF(Munkalap!A43>0,VLOOKUP(Munkalap!A43,Munkalap!A43:N185,5,FALSE),\" \")","v":0},null,{"$f":"IF(Munkalap!A43>0,VLOOKUP(Munkalap!A43,Munkalap!A43:N185,12,FALSE),\" \")","v":""}]
["Megjegyzés:",{"$f":"IF(Munkalap!A43>0,VLOOKUP(Munkalap!A43,Munkalap!$A$13:$P$44,16,FALSE),\" \")","v":0}]
[{"$f":"IF(Munkalap!$J$6>0,Munkalap!$J$6,\"\")","v":""},null,{"$f":"IF(Munkalap!$N$3>0,Munkalap!$N$3,\"\")","v":""}]
["Martin Metals Kft.",null,{"$f":"IF(Munkalap!A44>0,VLOOKUP(Munkalap!A44,Munkalap!$A$13:P44,15,FALSE),\" \")","v":""}]
["Bejövő helykód",{"$f":"IF(Munkalap!A44>0,VLOOKUP(Munkalap!A44,Munkalap!A44:N192,13,FALSE),\" \")","v":0},{"$f":"IF(Munkalap!A44>0,VLOOKUP(Munkalap!A44,Munkalap!$A$13:$P$44,14,FALSE),\" \")","v":0}]
["Új helykód",null,{"$f":"IF(Munkalap!A44>0,VLOOKUP(Munkalap!A44,Munkalap!A44:N192,10,FALSE),\" \")","v":0}]
["Új helykód 2",null,{"$f":"IF(Munkalap!A44>0,VLOOKUP(Munkalap!A44,Munkalap!A44:N192,11,FALSE),\" \")","v":0}]
[{"$f":"IF(Munkalap!A44>0,VLOOKUP(Munkalap!A44,Munkalap!A44:N192,5,FALSE),\" \")","v":0},null,{"$f":"IF(Munkalap!A44>0,VLOOKUP(Munkalap!A44,Munkalap!A44:N185,12,FALSE),\" \")","v":""}]
["Megjegyzés:",{"$f":"IF(Munkalap!A44>0,VLOOKUP(Munkalap!A44,Munkalap!$A$13:$P$44,16,FALSE),\" \")","v":0}]
[{"$f":"IF(Munkalap!$J$6>0,Munkalap!$J$6,\"\")","v":""},null,{"$f":"IF(Munkalap!$N$3>0,Munkalap!$N$3,\"\")","v":""}]